Workbook

Sheet Scope Inputs
A1: Last Updated: 06/19/2019
B2: Level of Complexity | D2: 1 - Simple | T2: 1 - Simple | U2: 1 | V2: 1 - Isolated (1) | W2: 1
B3: Size of Existing Network (# of signalized intersections) | D3: 1 - Isolated (1) | T3: 2 - Low | U3: 2 | V3: 2 - Small (2-4) | W3: 2
T4: 3 - Moderate | U4: 3 | V4: 3 - Medium (5-9) | W4: 3
B5: Estimation Index (1-10) | D5: =T7+V7 -> 2 | F5: Unit Cost | G5: Unit Cost | H5: Total | I5: Total | T5: 4 - High | U5: 4 | V5: 4 - Large (10-17) | W5: 4
F6: Mandays | G6: Mandays | H6: Mandays | I6: Mandays | T6: 5 - Very Complex | U6: 5 | V6: 5 - Very Large (18+) | W6: 5
A7: 1 | B7: Project Management, Coordination and Administration | F7: (Low) | G7: (High) | H7: (Low) | I7: (High) | T7: =VLOOKUP(D2,T2:U6,2,TRUE) -> 1 | V7: =VLOOKUP(D3,V2:W6,2,TRUE) -> 1
A8: 1.1 | B8: Project Management and Administration | C8: 18 | D8: 0 | F8: 0.75 | G8: 1.5 | H8: =D8*F8 -> 0 | I8: =D8*G8 -> 0 | K8: Based on complexity of project and how much coordination is needed. If part of a contract from another branch, should be removed or only 1 month allowed. If standalone project may be toward higher end.
H9: =SUM(H18:H239)*0.1 -> 0 | I9: =SUM(I18:I239)*0.1 -> 0 | K9: Cap of 10% of Mandays to complete analysis
A10: 1.2 | B10: Project Coordination | C10: 19 | D10: 0 | F10: 0.25 | G10: 0.75 | H10: =D10*F10 -> 0 | I10: =D10*G10 -> 0 | K10: Based on complexity of project and how much coordination is needed with other groups or branches | U10: Non-Calibrated
H11: =SUM(H18:H239)*0.05 -> 0 | I11: =SUM(I18:I239)*0.05 -> 0 | K11: Cap of 5% of Mandays to complete analysis
B12: Meetings | C12: 020/021 | D12: 0 | E12: 0 | F12: 0.5 | G12: 0.5 | H12: =D12*E12*F12 -> 0 | I12: =D12*E12*G12 -> 0 | K12: Depending on likely length of meetings. Includes travel and prep time | U12: Calibrated to Forecast
B13: Additional travel time (beyond 1 hour assumed for local meetings) | D13: 0 | E13: =E12*D12 -> 0 | F13: 0.125 | G13: 0.125 | H13: =D13*E13*F13 -> 0 | I13: =D13*E13*G13 -> 0 | K13: Add additional travel time for meetings not local to attendees (column E is number of meeting * attendees from line above. If not all meetings are out of town overwrite with number of person-meetings requiring additional travel.) | U13: Calibrated to Field Counts
A14: 1.3 | B14: Consultant Coordination | D14: 0 | E14: 0 | F14: 0.25 | G14: 0.75 | H14: =D14*E14*F14 -> 0 | I14: =D14*E14*G14 -> 0 | K14: Based on complexity of project and how much coordination is needed with prime or sub consultants. Enter number of consultants that require substantial coordination
H15: =SUM(H18:H239)*0.05 -> 0 | I15: =SUM(I18:I239)*0.05 -> 0 | K15: Cap of 5% of Mandays to complete analysis
U16: Required
A17: 2 | B17: Data Collection and Field Visit | U17: Not Required
A18: 2.1 | B18: Data Collection (0 or 1 only) | D18: 0 | F18: 0.5 | G18: 2 | H18: =D18*F18 -> 0 | I18: =D18*G18 -> 0 | K18: Depend on size of network and how much data is needed
A20: 2.2 | B20: Field Visit | D20: Not Required
B21: Field Visit - Preparation | D21: 1 | F21: 0.25 | G21: 0.75 | H21: =IF($D$20="Required",($D21*F21),0) -> 0 | I21: =IF($D$20="Required",($D21*G21),0) -> 0 | K21: Depends on how large the study is
B22: Field Visit Travel - One Way | C22: 22 | D22: 0 | E22: 2 | F22: 0.125 | G22: 0.125 | H22: =IF($D$20="Required",(D22*E22*F22*2),0) -> 0 | I22: =IF($D$20="Required",(D22*E22*G22*2),0) -> 0 | K22: Travel time to project
B23: Field Visit Observation | D23: 0 | E23: 2 | F23: 0.125 | G23: 0.125 | H23: =IF($D$20="Required",(D23*E23*F23),0) -> 0 | I23: =IF($D$20="Required",(D23*E23*G23),0) -> 0 | K23: Assume only observing 1 peak and field review
A25: 3 | B25: Traffic Volume Development | D25: Not Required
A27: 3.1 | B27: Convert Forecast to Peak Hour Volumes | C27: 023/024 | D27: 0 | E27: 0 | F27: 0.03 | G27: 0.03 | H27: =IF(($D$25="Required"),(D27*E27*F27),0) -> 0 | I27: =IF(($D$25="Required"),(D27*E27*G27),0) -> 0 | K27: 15 minutes per intersection per scenario
B28: Breakouts for interchanges/alternative designs | C28: 025/026 | D28: 0 | E28: 0 | F28: 0.03 | G28: 0.06 | H28: =IF(($D$25="Required"),(D28*E28*F28),0) -> 0 | I28: =IF(($D$25="Required"),(D28*E28*G28),0) -> 0 | K28: 15-30 minutes per breakout to interchange or alternative intersection
A29: 3.2 | B29: Balance Peak Hour Volumes | C29: 023/024 | D29: 0 | E29: 0 | F29: 0.02 | G29: 0.03 | H29: 0 | I29: 0 | K29: 10-15 minutes per intersection to balance. This is essentially developing a spreadsheet that may be more for a single scenario, but is much lower for additional scenarios as it is already setup
A31: 3.3 | B31: OD Matrix Development | D31: =IF((SUM(J32:J37)>1),"Please Choose Only 1 OD Method","") -> 
B32: Method 1: Corridor Turn Proportions | D32: 0 | E32: 0 | F32: 0.0417 | G32: 0.0417 | H32: =IF(($D$25="Required"),(D32*E32*F32),0) -> 0 | I32: =IF(($D$25="Required"),(D32*E32*G32),0) -> 0 | J32: =IF((I32>0),1,0) -> 0 | K32: 20 minutes per intersection to input data into spreadsheet
B33: Method 2: Engineering Judgment/Manual Balancing | D33: 0 | E33: 0 | F33: 0.0625 | G33: 0.0833 | H33: 0 | I33: 0 | J33: =IF((I33>0),1,0) -> 0 | K33: 30-40 minutes per intersection to develop matrix. This is essentially developing a spreadsheet that may be more for a single scenario, but is much lower for additional scenarios as it is already setup
B34: Method 3: Travel Demand Models | D34: 0 | E34: 0 | F34: 0.0938 | G34: 0.125 | H34: =IF(($D$25="Required"),(IF((D34=0),0,(0.5+(AVERAGEA(D34:E34))*F34))),0) -> 0 | I34: =IF(($D$25="Required"),(IF((D34=0),0,(0.5+(AVERAGEA(D34:E34))*G34))),0) -> 0 | J34: 0 | K34: 4 hours + 45-60 minutes per intersection to develop matrix. This includes running the travel demand model. If extensive work on the travel demand model is required it should be scoped separately
B35: Method 4: OD Data Collection | D35: 0 | E35: 0 | F35: 0.0313 | G35: 0.0313 | H35: =IF(($D$25="Required"),(IF((D35=0),0,(0.375+(AVERAGEA(D35:E35))*F35))),0) -> 0 | I35: =IF(($D$25="Required"),(IF((D35=0),0,(0.375+(AVERAGEA(D35:E35))*G35))),0) -> 0 | K35: 3 hours + 15 minutes per intersection to run the StreetLight Data Insight data
D36: 0 | E36: 0 | F36: 0.0313 | G36: 0.0417 | H36: =IF(($D$25="Required"),(D36*E36*F36),0) -> 0 | I36: =IF(($D$25="Required"),(D36*E36*G36),0) -> 0 | J36: 0 | K36: 15-20 minutes per intersection to develop matrix. This is essentially developing a spreadsheet that may be more for a single scenario, but is much lower for additional scenarios as it is already setup
B37: Method 5: Turning Movement Based Simulation Output | D37: 0 | E37: 0 | F37: 0.0313 | G37: 0.0313 | H37: =IF(($D$25="Required"),(IF((D37=0),0,(0.5+(AVERAGEA(D37:E37))*F37))),0) -> 0 | I37: =IF(($D$25="Required"),(IF((D37=0),0,(0.5+(AVERAGEA(D37:E37))*G37))),0) -> 0 | J37: 0 | K37: 4 hours + 15 minutes per intersection to run TransModeler and average the outputs
A39: 3.4 | B39: Origin Destination Matrix Estimation (ODME) Development | D39: 0
D40: 0 | E40: 0 | F40: 0.0208 | G40: 0.0208 | H40: =IF(($D$25="Required"),(IF((D40=0),0,((0.375*D39)+(AVERAGEA(D40:E40))*D39*F40))),0) -> 0 | I40: =IF(($D$25="Required"),(IF((D40=0),0,((0.5*D39)+(AVERAGEA(D40:E40))*D39*G40))),0) -> 0 | K40: 3-4 hours per scenario + 10 minutes per origin or destination
A42: 3.5 | B42: Class Based OD Matrix Development | D42: 0
D43: 0 | E43: 0 | F43: 0.0208 | G43: 0.0208 | H43: =IF(($D$25="Required"),(IF((D43=0),0,(0.375+(AVERAGEA(D43:E43))*D42*F43))),0) -> 0 | I43: =IF(($D$25="Required"),(IF((D43=0),0,(0.375+(AVERAGEA(D43:E43))*D42*G43))),0) -> 0 | K43: 3 hours + 10 minutes per origin or destination
A45: 3.6 | B45: Multi-hour Simulation OD Matrix Development | D45: =IF((SUM(J46:J47)>1),"Please Choose Only 1 OD Method",IF((0>E46<3),"Minimum Number of Hours is 3","")) -> 
B46: Option 1: Scaling Factor and Loading Curve | E46: 0 | F46: 0.0625 | G46: 0.0625 | H46: =IF(($D$25="Required"),(IF((E46=0),0,(0.375+((E46-2)*F46)))),0) -> 0 | I46: =IF(($D$25="Required"),(IF((E46=0),0,(0.375+((E46-2)*G46)))),0) -> 0 | J46: =IF((I46>0),1,0) -> 0 | K46: 2 hours + 30 minutes for each hour greater than standard 2 hours
B47: Option 2: Individual OD matrices for each hour | D47: 0 | E47: 0 | H47: =IF(($D$25="Required"),(SUM(H32:H37)*(0.5+(0.125*(E47-4)))),0) -> 0 | I47: =IF(($D$25="Required"),(SUM(I32:I37)*(0.5+(0.125*(E47-4)))),0) -> 0 | J47: =IF((I47>0),1,0) -> 0 | K47: total time to develop 2 peak hour matrices (Section 3.3) multiplied by 50% for 4 hours and 12.5% for each hour beyond 4
A49: 3.7 | B49: Add Origin Destination Matrices in TransModeler | D49: =IF((SUM(D32:D34,D36:D37)>0),1,0) -> 0 | H49: =IF(($D$25="Required"),(MAX((D32:D34,D36,D37))*(0.25+(0.0313*(MAX(E46:E47))))),0) -> 0 | I49: =IF(($D$25="Required"),(MAX((D32:D34,D36,D37))*(0.25+(0.0313*(MAX(E46:E47))))),0) -> 0 | K49: 2 hours + 15 minutes for each hourly matrix
A51: 4 | B51: 201X Base Year Model | D51: Not Required
A53: 4 | B53: 201X Base Year Model
A54: 4.1 | B54: Model Development
A55: 4.1.1 | B55: Initial Model Setup
B56: Develop Default File/Reference Aerial Photography | D56: 1 | F56: 0.25 | G56: 0.5 | H56: =IF($D$51="Required",($D56*F56),0) -> 0 | I56: =IF($D$51="Required",($D56*G56),0) -> 0 | K56: 2-4 hours
B57: Merge Existing Models into Network | C57: 27 | D57: 0 | F57: 0.25 | G57: 0.5 | H57: =IF($D$51="Required",($D57*F57),0) -> 0 | I57: =IF($D$51="Required",($D57*G57),0) -> 0 | K57: 2-4 hours per model - Depending on size and quality of model
A59: 4.1.2 | B59: Develop Base Year Model in TransModeler
B60: Freeway Coding | C60: 28 | D60: 0 | F60: 0.15625 | G60: 0.1875 | H60: =IF($D$51="Required",($D60*F60),0) -> 0 | I60: =IF($D$51="Required",($D60*G60),0) -> 0 | K60: 75-90 minutes per mile
B61: Arterial/Collector/Local Coding | C61: 29 | D61: 0 | F61: 0.1875 | G61: 0.25 | H61: 0 | I61: 0 | K61: 90-120 minutes per mile
B62: System Interchange (Standard) | C62: 31 | D62: 0 | F62: 0.5 | G62: 0.75 | H62: 0 | I62: 0 | K62: 4-6 hours per interchange
B63: System Interchange (Complex) | C63: 31 | D63: 0 | F63: 1.5 | G63: 2 | H63: 0 | I63: 0 | K63: 12-16 hours per interchange
B64: Service Interchange (Standard)* | C64: 33 | D64: 0 | F64: 0.375 | G64: 0.5 | H64: 0 | I64: 0 | K64: 3-4 hours per interchange
B65: Service Interchange (DDI)* | C65: 34 | D65: 0 | F65: 0.5 | G65: 1 | H65: 0 | I65: 0 | K65: 4-8 hours per interchange
B66: Unsignalized Intersection | C66: 35 | D66: 0 | F66: 0.04167 | G66: 0.08333 | H66: 0 | I66: 0 | K66: 20-40 minutes per intersection
B67: Unsignalized Superstreet (includes main intersection and 2 u-turns) | D67: 0 | F67: 0.25 | G67: 0.5 | H67: =IF($D$51="Required",($D67*F67),0) -> 0 | I67: =IF($D$51="Required",($D67*G67),0) -> 0 | K67: 2-4 hours per intersection
B68: Single Lane Roundabout | D68: 0 | F68: 0.125 | G68: 0.1875 | H68: 0 | I68: 0 | K68: 60-90 minutes per intersection
B69: Dual Lane Roundabout | D69: 0 | F69: 0.25 | G69: 0.375 | H69: 0 | I69: 0 | K69: 2-3 hours per intersection
B70: Signalized Intersection (Simple) | C70: 36 | D70: 0 | F70: 0.1875 | G70: 0.4167 | H70: 0 | I70: 0 | K70: 120-200 minutes per intersection
B71: Signalized Intersection (Complex) | C71: 38 | D71: 0 | F71: 0.3125 | G71: 0.5 | H71: 0 | I71: 0 | K71: 180-240 minutes per intersection
B72: Signalized Intersection (Unconventional) | C72: 39 | D72: 0 | F72: 0.5 | G72: 0.75 | H72: 0 | I72: 0 | K72: 4-6 hours per intersection
B73: Signalized Intersection (Superstreet) (includes main intersection and 2 u-turns | C73: 40 | D73: 0 | F73: 0.5 | G73: 1 | H73: 0 | I73: 0 | K73: 4-8 hours per intersection
B74: Adding Z-Elevations (0 or 1 only) | D74: 0 | F74: 0.25 | G74: 0.75 | H74: 0 | I74: 0 | K74: Depending on size of model and number of bridges that require hand manipulating elevations
A76: 4.1.3 | B76: Adding Volume Data to Model
B77: Add Peak Hour Volumes - Balanced | C77: 41 | D77: 0 | F77: 0.01042 | G77: 0.02083 | H77: =IF($D$51="Required",($D77*F77*2),0) -> 0 | I77: =IF($D$51="Required",($D77*G77*2),0) -> 0 | K77: 5-10 minutes per intersection to add volumes to intersection in TransModeler - multiplied by 2 for AM and PM Peaks
B79: Add vehicle composition data or heavy vehicle data | D79: 0 | F79: 0.25 | G79: 0.5 | H79: =IF($D$51="Required",($D79*F79),0) -> 0 | I79: =IF($D$51="Required",($D79*G79),0) -> 0 | K79: 1-2 hours per model (unless class based matrices are being utilized)
A81: 4.1.4 | B81: Optimize Signalized Intersections | C81: 42 | D81: 0 | E81: 0 | F81: =90/480 -> 0.1875 | G81: 0.25 | H81: =IF($D$51="Required",(($D81*F81)+(0.0313*E81)),0) -> 0 | I81: =IF($D$51="Required",(($D81*G81)+(0.0625*E81)),0) -> 0 | K81: 90-120 minutes per corridor + 15-30 minutes per signal
C82: 43 | D82: 0 | F82: 0.0625 | G82: 0.125 | H82: =IF($D$51="Required",($D82*F82),0) -> 0 | I82: =IF($D$51="Required",($D82*G82),0) -> 0 | K82: 30-60 minutes per intersection
A84: 4.1.5 | B84: Dynamic Traffic Assignment | D84: 0 | E84: 0 | F84: =1/480 -> 0.002083333333 | G84: =2/480 -> 0.004166666667 | H84: =IF($D$51="Required",(D84*0.5)+(D84*E84*F84),0) -> 0 | I84: =IF($D$51="Required",(D84*0.5)+(D84*E84*G84),0) -> 0 | K84: 4 hours + 1-2 minutes per iteration
A85: =SUM(D66:D73) -> 0 | B85: =IF((A85=0),"","Recommended Iterations = "&IF((A85<9),25,IF((A85<16),50,IF((A85<31),100,"> 100")))) ->  | D85: 0 | F85: =10/480 -> 0.02083333333 | G85: =20/480 -> 0.04166666667 | H85: =IF($D$51="Required",D84*D85*F85,0) -> 0 | I85: =IF($D$51="Required",D84*D85*G85,0) -> 0 | K85: 10-20 minutes per intersection
A87: 4.1.6 | B87: Code Measures of Effectiveness | D87: 1 | F87: 0.0625 | G87: 0.25 | H87: =IF($D$51="Required",($D87*F87),0) -> 0 | I87: 0 | K87: 30-120 minutes per model
B88: Develop Output Spreadsheet | C88: 44
B89: Intersections | C89: 45 | D89: 0 | F89: 0.0625 | G89: 0.0625 | H89: 0 | I89: =IF($D$51="Required",($D89*G89),0) -> 0 | K89: 30 minutes per intersection
B90: Freeway Segments | D90: 0 | F90: =20/480 -> 0.04166666667 | G90: =20/480 -> 0.04166666667 | H90: 0 | I90: =IF($D$51="Required",($D90*G90),0) -> 0 | K90: 20 minutes per analysis point
B91: Multi-lane Segments | D91: 0 | F91: =20/480 -> 0.04166666667 | G91: 0.04166666667 | H91: =IF($D$51="Required",($D91*F91),0) -> 0 | I91: =IF($D$51="Required",($D91*G91),0) -> 0 | K91: 20 minutes per analysis point
B92: Two-Lane Segments | D92: 0 | F92: 0.04166666667 | G92: 0.04166666667 | H92: 0 | I92: 0 | K92: 20 minutes per analysis point
B93: Corridor Heat Maps | D93: 0 | F93: 0.25 | G93: 0.5 | H93: =IF($D$51="Required",($D93*F93),0) -> 0 | I93: =IF($D$51="Required",($D93*G93),0) -> 0 | K93: 2-4 hours per corridor
B94: Corridor/Route MOE's (0 or 1 only) | D94: 0 | F94: =3/8 -> 0.375 | G94: =6/8 -> 0.75 | H94: =IF($D$51="Required",($D94*F94),0) -> 0 | I94: 0 | K94: 3-6 hours
A96: 4.1.7 | B96: Error Check/Visual Audit/Quality Control | D96: 1 | F96: 0.08 | G96: 0.1 | H96: =IF($D$51="Required",(SUM(H84:H85,H60:H74,H77:H77,H81:H82,H87:H94,H79))*F96,0) -> 0 | I96: =IF($D$51="Required",(SUM(I84:I85,I60:I74,I77:I77,I81:I82,I87:I94,I79))*G96,0) -> 0 | K96: 8-10% of model development time
A99: 4.1.8 | B99: Default Values/Visual Validation/Calibration | D99: =IF((A100=0),"Add 1 each to one of the categories below",IF((A100>1),"Only choose one of the below types",IF((D102=1),"Add custom scope in Section 10",""))) -> Add 1 each to one of the categories below
A100: =SUM(D100:D102) -> 0 | B100: Default Values | D100: 0 | F100: 0 | G100: 0 | H100: =IF($D$51="Required",($D94*F94),0) -> 0 | I100: =IF($D$51="Required",($D94*F94),0) -> 0 | K100: No effort required
B101: Visual Validation | D101: 0 | F101: 0.04 | G101: 0.075 | H101: =IF(D51="Required",(SUM(H84:H85,H60:H74,H77:H77,H81:H82,H87:H94,H79))*F101,0) -> 0 | I101: =IF(D51="Required",(SUM(I84:I85,I60:I74,I77:I77,I81:I82,I87:I94,I79))*G101,0) -> 0 | K101: 4-7.5% of model development time
B102: Calibration | D102: 0 | F102: 0 | G102: 0 | H102: =IF($D$51="Required",($D94*F94),0) -> 0 | I102: =IF($D$51="Required",($D94*F94),0) -> 0 | K102: Develop Custom Scope in Section 10
A105: 4.1.9 | B105: Run Model/Extract Outputs - Setup Run Controls/Run Simulation | D105: 1 | F105: 0.25 | G105: 0.75 | H105: =IF($D$51="Required",($D105*F105),0) -> 0 | I105: =IF($D$51="Required",($D105*G105),0) -> 0 | K105: 2-6 hours per model
A108: 4.1.10 | B108: Multi-hour Simulation Adjustment | D108: 0 | F108: =IF((D108=0),0,IF((D108<2.1),0,IF((D108<5),0.1,IF((D108<7),0.15,IF((D108>6),0.2,0))))) -> 0 | G108: =IF((D108=0),0,IF((D108<2.1),0,IF((D108<5),0.2,IF((D108<7),0.25,IF((D108>6),0.3,0))))) -> 0 | H108: =IF($D$51="Required",(SUM(H84:H85,H60:H74,H77:H77,H81:H82,H87:H94,H79,H56:H57,H96,H100:H102,H105))*F108,0) -> 0 | I108: =IF($D$51="Required",(SUM(I84:I85,I60:I74,I77:I77,I81:I82,I87:I94,I79,I56:I57,I96,I100:I102,I105))*G108,0) -> 0 | K108: 10-30% of sections 4.1.1 through 4.1.9
A111: 5 | B111: 204X No-Build Analysis | D111: Not Required
A113: 5.1 | B113: Model Development
A114: 5.1.1 | B114: Develop Future Year No-Build Model
B115: Freeway Coding | C115: 28 | D115: 0 | F115: 0.15625 | G115: 0.1875 | H115: =IF($D$111="Required",($D115*F115),0) -> 0 | I115: =IF($D$111="Required",($D115*G115),0) -> 0 | K115: 75-90 minutes per mile
B116: Arterial/Collector/Local Coding | C116: 29 | D116: 0 | F116: 0.1875 | G116: 0.25 | H116: 0 | I116: 0 | K116: 90-120 minutes per mile
B117: System Interchange (Standard) | C117: 31 | D117: 0 | F117: 0.5 | G117: 0.75 | H117: 0 | I117: 0 | K117: 4-6 hours per interchange
B118: System Interchange (Complex) | C118: 31 | D118: 0 | F118: 1.5 | G118: 2 | H118: 0 | I118: 0 | K118: 12-16 hours per interchange
B119: Service Interchange (Standard)* | C119: 33 | D119: 0 | F119: 0.375 | G119: 0.5 | H119: 0 | I119: 0 | K119: 3-4 hours per interchange
B120: Service Interchange (DDI)* | C120: 34 | D120: 0 | F120: 0.5 | G120: 1 | H120: 0 | I120: 0 | K120: 4-8 hours per interchange
B121: Unsignalized Intersection | C121: 35 | D121: 0 | F121: 0.04167 | G121: 0.08333 | H121: 0 | I121: 0 | K121: 20-40 minutes per intersection
B122: Unsignalized Superstreet (includes main intersection and 2 u-turns) | D122: 0 | F122: 0.25 | G122: 0.5 | H122: 0 | I122: 0 | K122: 2-4 hours per intersection
B123: Single Lane Roundabout | D123: 0 | F123: 0.125 | G123: 0.1875 | H123: 0 | I123: 0 | K123: 60-90 minutes per intersection
B124: Dual Lane Roundabout | D124: 0 | F124: 0.25 | G124: 0.375 | H124: 0 | I124: 0 | K124: 2-3 hours per intersection
B125: Signalized Intersection (Simple) | C125: 36 | D125: 0 | F125: 0.1875 | G125: 0.4167 | H125: 0 | I125: 0 | K125: 120-200 minutes per intersection
B126: Signalized Intersection (Complex) | C126: 38 | D126: 0 | F126: 0.3125 | G126: 0.5 | H126: 0 | I126: 0 | K126: 180-240 minutes per intersection
B127: Signalized Intersection (Unconventional) | C127: 39 | D127: 0 | F127: 0.5 | G127: 0.75 | H127: 0 | I127: 0 | K127: 4-6 hours per intersection
B128: Signalized Intersection (Superstreet) (includes main intersection and 2 u-turns | C128: 40 | D128: 0 | F128: 0.5 | G128: 1 | H128: 0 | I128: 0 | K128: 4-8 hours per intersection
B129: Adding Z-Elevations (0 or 1 only) | D129: 0 | F129: 0.25 | G129: 0.75 | H129: 0 | I129: 0 | K129: Depending on size of model and number of bridges that require hand manipulating elevations
A131: 5.1.2 | B131: Adding Volume Data to Model
B132: Add Peak Hour Volumes | D132: 0 | F132: 0.01042 | G132: 0.02083 | H132: =IF($D$111="Required",($D132*F132*2),0) -> 0 | I132: =IF($D$111="Required",($D132*G132*2),0) -> 0 | K132: 5-10 minutes per intersection to add volumes to intersection in TransModeler - multiplied by 2 for AM and PM Peaks
B134: Add vehicle composition data or heavy vehicle data | D134: 0 | F134: =F79/4 -> 0.0625 | G134: =G79/4 -> 0.125 | H134: =IF($D$111="Required",($D134*F134),0) -> 0 | I134: =IF($D$111="Required",($D134*G134),0) -> 0 | K134: 25% of Base Year
A136: 5.1.3 | B136: Optimize Signalized Intersections | C136: 42 | D136: 0 | E136: 0 | F136: =90/480 -> 0.1875 | G136: 0.25 | H136: =IF($D$111="Required",(($D136*F136)+(0.0313*E136)),0) -> 0 | I136: =IF($D$111="Required",(($D136*G136)+(0.0625*E136)),0) -> 0 | K136: 90-120 minutes per corridor + 15-30 minutes per signal
C137: 43 | D137: 0 | F137: 0.0625 | G137: 0.125 | H137: =IF($D$111="Required",($D137*F137),0) -> 0 | I137: =IF($D$111="Required",($D137*G137),0) -> 0 | K137: 30-60 minutes per intersection
A139: 5.1.4 | B139: Dynamic Traffic Assignment | D139: 0 | E139: 0 | F139: =1/480 -> 0.002083333333 | G139: =2/480 -> 0.004166666667 | H139: =IF($D$111="Required",(D139*0.5)+(D139*E139*F139),0) -> 0 | I139: =IF($D$111="Required",(D139*0.5)+(D139*E139*G139),0) -> 0 | K139: 4 hours + 1-2 minutes per iteration
A140: =SUM(D121:D128) -> 0 | B140: =IF((A140=0),"","Recommended Iterations = "&IF((A140<9),25,IF((A140<16),50,IF((A140<31),100,"> 100")))) ->  | D140: 0 | F140: =10/480 -> 0.02083333333 | G140: =20/480 -> 0.04166666667 | H140: =IF($D$111="Required",D139*D140*F140,0) -> 0 | I140: =IF($D$111="Required",D139*D140*G140,0) -> 0 | K140: 10-20 minutes per intersection
A142: 5.1.5 | B142: Code Measures of Effectiveness | D142: 1 | F142: =F87/2 -> 0.03125 | G142: =G87/2 -> 0.125 | H142: =IF($D$111="Required",($D142*F142),0) -> 0 | I142: =IF($D$111="Required",($D142*G142),0) -> 0 | K142: 50% of Base Year
B143: Develop Output Spreadsheet | C143: 44
B144: Intersections | C144: 45 | D144: 0 | F144: 0.0625 | G144: 0.0625 | H144: =IF($D$111="Required",($D144*F144),0) -> 0 | I144: 0 | K144: 30 minutes per intersection
B145: Freeway Segments | D145: 0 | F145: =20/480 -> 0.04166666667 | G145: =20/480 -> 0.04166666667 | H145: 0 | I145: 0 | K145: 20 minutes per analysis point
B146: Multi-lane Segments | D146: 0 | F146: =20/480 -> 0.04166666667 | G146: 0.04166666667 | H146: 0 | I146: 0 | K146: 20 minutes per analysis point
B147: Two-Lane Segments | D147: 0 | F147: 0.04166666667 | G147: 0.04166666667 | H147: 0 | I147: 0 | K147: 20 minutes per analysis point
B148: Corridor Heat Maps | D148: 0 | F148: 0.25 | G148: 0.5 | H148: 0 | I148: 0 | K148: 2-4 hours per corridor
B149: Corridor/Route MOE's (0 or 1 only) | D149: 0 | F149: =3/8 -> 0.375 | G149: =6/8 -> 0.75 | H149: 0 | I149: 0 | K149: 3-6 hours
B150: (Only new intersections/analysis points not in BY Model)
A152: 5.1.6 | B152: Error Check/Visual Audit/Quality Control | D152: 1 | F152: 0.1 | G152: 0.1 | H152: =(SUM(H115:H129,H132:H134,H136:H137,H142:H149,H139:H140))*F152 -> 0 | I152: =(SUM(I115:I129,I132:I134,I136:I137,I142:I149,I139:I140))*G152 -> 0 | K152: 10% of model development time
A154: 5.1.7 | B154: Run Model/Extract Outputs - Setup Run Controls/Run Simulation | D154: 1 | F154: 0.25 | G154: 0.75 | H154: =IF($D$111="Required",($D154*F154),0) -> 0 | I154: =IF($D$111="Required",($D154*G154),0) -> 0 | K154: 2-6 hours per model
A157: 5.1.8 | B157: Multi-hour Simulation Adjustment | D157: 0 | F157: =IF((D157=0),0,IF((D157<2.1),0,IF((D157<5),0.1,IF((D157<7),0.15,IF((D157>6),0.2,0))))) -> 0 | G157: =IF((D157=0),0,IF((D157<2.1),0,IF((D157<5),0.2,IF((D157<7),0.25,IF((D157>6),0.3,0))))) -> 0 | H157: =IF($D$111="Required",(SUM(H115:H154))*F157,0) -> 0 | I157: =IF($D$111="Required",(SUM(I115:J154))*G157,0) -> 0 | K157: 10-30% of sections 4.1.1 through 4.1.9
A160: 6 | B160: 204X Build Analysis | D160: Not Required
A162: 6.1 | B162: Model Development
A163: 6.1.1 | B163: Develop Future Year Build Model (Add totals for all alternatives and enter below)
B164: Freeway Coding | C164: 28 | D164: 0 | F164: 0.15625 | G164: 0.1875 | H164: =IF($D$160="Required",($D164*F164),0) -> 0 | I164: =IF($D$160="Required",($D164*G164),0) -> 0 | K164: 75-90 minutes per mile
B165: Arterial/Collector/Local Coding | C165: 29 | D165: 0 | F165: 0.1875 | G165: 0.25 | H165: 0 | I165: 0 | K165: 90-120 minutes per mile
B166: System Interchange (Standard) | C166: 31 | D166: 0 | F166: 0.5 | G166: 0.75 | H166: 0 | I166: 0 | K166: 4-6 hours per interchange
B167: System Interchange (Complex) | C167: 31 | D167: 0 | F167: 1.5 | G167: 2 | H167: 0 | I167: 0 | K167: 12-16 hours per interchange
B168: Service Interchange (Standard)* | C168: 33 | D168: 0 | F168: 0.375 | G168: 0.5 | H168: 0 | I168: 0 | K168: 3-4 hours per interchange
B169: Service Interchange (DDI)* | C169: 34 | D169: 0 | F169: 0.5 | G169: 1 | H169: 0 | I169: 0 | K169: 4-8 hours per interchange
B170: Unsignalized Intersection | C170: 35 | D170: 0 | F170: 0.04167 | G170: 0.08333 | H170: 0 | I170: 0 | K170: 20-40 minutes per intersection
B171: Unsignalized Superstreet (includes main intersection and 2 u-turns) | D171: 0 | F171: 0.25 | G171: 0.5 | H171: 0 | I171: 0 | K171: 2-4 hours per intersection
B172: Single Lane Roundabout | D172: 0 | F172: 0.125 | G172: 0.1875 | H172: 0 | I172: 0 | K172: 60-90 minutes per intersection
B173: Dual Lane Roundabout | D173: 0 | F173: 0.25 | G173: 0.375 | H173: 0 | I173: 0 | K173: 2-3 hours per intersection
B174: Signalized Intersection (Simple) | C174: 36 | D174: 0 | F174: 0.1875 | G174: 0.4167 | H174: 0 | I174: 0 | K174: 120-200 minutes per intersection
B175: Signalized Intersection (Complex) | C175: 38 | D175: 0 | F175: 0.3125 | G175: 0.5 | H175: 0 | I175: 0 | K175: 180-240 minutes per intersection
B176: Signalized Intersection (Unconventional) | C176: 39 | D176: 0 | F176: 0.5 | G176: 0.75 | H176: 0 | I176: 0 | K176: 4-6 hours per intersection
B177: Signalized Intersection (Superstreet) (includes main intersection and 2 u-turns | C177: 40 | D177: 0 | F177: 0.5 | G177: 1 | H177: 0 | I177: 0 | K177: 4-8 hours per intersection
B178: Adding Z-Elevations | D178: 0 | F178: 0.25 | G178: 0.75 | H178: 0 | I178: 0 | K178: Depending on size of model and number of bridges that require hand manipulating elevations
A180: 6.1.2 | B180: Adding Volume Data to Model
B181: Add Peak Hour Volumes | D181: 0 | F181: 0.01042 | G181: 0.02083 | H181: =IF($D$160="Required",($D181*F181*2),0) -> 0 | I181: =IF($D$160="Required",($D181*G181*2),0) -> 0 | K181: 5-10 minutes per intersection to add volumes to intersection in TransModeler - multiplied by 2 for AM and PM Peaks
B183: Add vehicle composition data or heavy vehicle data | D183: 0 | F183: =F79/2 -> 0.125 | G183: =G79/2 -> 0.25 | H183: =IF($D$160="Required",($D183*F183),0) -> 0 | I183: =IF($D$160="Required",($D183*G183),0) -> 0 | K183: 50% of Base Year
A185: 6.1.3 | B185: Optimize Signalized Intersections | D185: 0 | E185: 0 | F185: =90/480 -> 0.1875 | G185: 0.25 | H185: =IF($D$160="Required",(($D185*F185)+(0.0313*E185)),0) -> 0 | I185: =IF($D$160="Required",(($D185*G185)+(0.0625*E185)),0) -> 0 | K185: 90-120 minutes per corridor + 15-30 minutes per signal
D186: 0 | F186: 0.0625 | G186: 0.125 | H186: =IF($D$160="Required",($D186*F186),0) -> 0 | I186: =IF($D$160="Required",($D186*G186),0) -> 0 | K186: 30-60 minutes per intersection
A188: 6.1.4 | B188: Dynamic Traffic Assignment | D188: 0 | E188: 0 | F188: =1/480 -> 0.002083333333 | G188: =2/480 -> 0.004166666667 | H188: =IF($D$160="Required",(D188*0.5)+(D188*E188*F188),0) -> 0 | I188: =IF($D$160="Required",(D188*0.5)+(D188*E188*G188),0) -> 0 | K188: 4 hours + 1-2 minutes per iteration
A189: =SUM(D170:D177) -> 0 | B189: =IF((A189=0),"","Recommended Iterations = "&IF((A189<9),25,IF((A189<16),50,IF((A189<31),100,"> 100")))) ->  | D189: 0 | F189: =10/480 -> 0.02083333333 | G189: =20/480 -> 0.04166666667 | H189: =IF($D$160="Required",D188*D189*F189,0) -> 0 | I189: =IF($D$160="Required",D188*D189*G189,0) -> 0 | K189: 10-20 minutes per intersection
A191: 6.1.5 | B191: Code Measures of Effectiveness | D191: 0 | F191: 0.0625 | G191: 0.125 | H191: =IF($D$160="Required",($D191*F191),0) -> 0 | I191: =IF($D$160="Required",($D191*G191),0) -> 0 | K191: 30-60 minutes per model
B192: Develop Output Spreadsheet | C192: 44
B193: Intersections | C193: 45 | D193: 0 | F193: 0.0625 | G193: 0.0625 | H193: =IF($D$160="Required",($D193*F193),0) -> 0 | I193: 0 | K193: 30 minutes per intersection
B194: Freeway Segments | D194: 0 | F194: =20/480 -> 0.04166666667 | G194: =20/480 -> 0.04166666667 | H194: 0 | I194: 0 | K194: 20 minutes per analysis point
B195: Multi-lane Segments | D195: 0 | F195: =20/480 -> 0.04166666667 | G195: 0.04166666667 | H195: 0 | I195: 0 | K195: 20 minutes per analysis point
B196: Two-Lane Segments | D196: 0 | F196: 0.04166666667 | G196: 0.04166666667 | H196: 0 | I196: 0 | K196: 20 minutes per analysis point
B197: Corridor Heat Maps | D197: 0 | F197: 0.25 | G197: 0.5 | H197: 0 | I197: 0 | K197: 2-4 hours per corridor
B198: Corridor/Route MOE's (0 or 1 only) | D198: 0 | F198: =3/8 -> 0.375 | G198: =6/8 -> 0.75 | H198: 0 | I198: 0 | K198: 3-6 hours
B199: (Only new intersections/analysis points not in BY or FYNB Model)
A201: 6.1.6 | B201: Error Check/Visual Audit/Quality Control | D201: 1 | F201: 0.1 | G201: 0.15 | H201: =(SUM(H164:H178,H181:H181,H185:H186,H191:H198,H188:H189,H183))*F201 -> 0 | I201: =(SUM(I164:I178,I181:I181,I185:I186,I191:I198,I188:I189,I183))*G201 -> 0 | K201: 10-15% of model development time
A203: 6.1.7 | B203: Run Model/Extract Outputs - Setup Run Controls/Run Simulation | D203: 1 | F203: 0.25 | G203: 0.75 | H203: =IF($D$160="Required",($D203*F203),0) -> 0 | I203: =IF($D$160="Required",($D203*G203),0) -> 0 | K203: 2-6 hours per model for each scenario
A206: 6.1.8 | B206: Multi-hour Simulation Adjustment | D206: 0 | F206: =IF((D206=0),0,IF((D206<2.1),0,IF((D206<5),0.1,IF((D206<7),0.15,IF((D206>6),0.2,0))))) -> 0 | G206: =IF((D206=0),0,IF((D206<2.1),0,IF((D206<5),0.2,IF((D206<7),0.25,IF((D206>6),0.3,0))))) -> 0 | H206: =IF($D$160="Required",(SUM(H164:H203))*F206,0) -> 0 | I206: =IF($D$160="Required",(SUM(I164:J203))*G206,0) -> 0 | K206: 10-30% of sections 4.1.1 through 4.1.9
A208: 6.1.9 | B208: Design Iterations (Determine Based on Complexity and Level of Design) | D208: 0 | H208: =D208 -> 0 | I208: =D208 -> 0
A211: 7 | B211: 201X Build Analysis | D211: Not Required
A212: 7.1 | B212: Model Development
A214: 7.1.1 | B214: Adding Volume Data to Model
B215: Add Peak Hour Volumes | D215: 0 | F215: 0.01042 | G215: 0.02083 | H215: =IF($D$211="Required",($D215*F215*2),0) -> 0 | I215: =IF($D$211="Required",($D215*G215*2),0) -> 0 | K215: 5-10 minutes per intersection to add volumes to intersection in TransModeler - multiplied by 2 for AM and PM Peaks
A217: 7.1.2 | B217: Optimize Signalized Intersections | D217: 0 | E217: 0 | F217: =90/480 -> 0.1875 | G217: 0.25 | H217: =IF($D$211="Required",(($D217*F217)+(0.0313*E217)),0) -> 0 | I217: =IF($D$211="Required",(($D217*G217)+(0.0625*E217)),0) -> 0 | K217: 90-120 minutes per corridor + 15-30 minutes per signal
D218: 0 | F218: 0.0625 | G218: 0.125 | H218: =IF($D$211="Required",($D218*F218),0) -> 0 | I218: =IF($D$211="Required",($D218*G218),0) -> 0 | K218: 30-60 minutes per intersection
A220: 7.1.3 | B220: Dynamic Traffic Assignment | D220: 0 | E220: 0 | F220: =1/480 -> 0.002083333333 | G220: =2/480 -> 0.004166666667 | H220: =IF($D$211="Required",(D220*0.5)+(D220*E220*F220),0) -> 0 | I220: =IF($D$211="Required",(D220*0.5)+(D220*E220*G220),0) -> 0 | K220: 4 hours + 1-2 minutes per iteration
A221: =A189 -> 0 | B221: =IF((A221=0),"","Recommended Iterations = "&IF((A221<9),25,IF((A221<16),50,IF((A221<31),100,"> 100")))) ->  | D221: 0 | F221: =10/480 -> 0.02083333333 | G221: =20/480 -> 0.04166666667 | H221: =IF($D$211="Required",D220*D221*F221,0) -> 0 | I221: =IF($D$211="Required",D220*D221*G221,0) -> 0 | K221: 10-20 minutes per intersection
A223: 7.1.4 | B223: Run Model/Extract Outputs - Setup Run Controls/Run Simulation | D223: 1 | F223: 0.25 | G223: 0.75 | H223: =IF($D$211="Required",($D223*F223),0) -> 0 | I223: =IF($D$211="Required",($D223*G223),0) -> 0 | K223: 2-6 hours per model
A227: 8 | B227: Documentation
A228: 8.1 | B228: Traffic Operations Analysis Technical Memorandum
B229: Exec Summary, Background, Methodology, Conclusions, etc. | D229: =IF((SUM(D230:D234)>0),1,0) -> 0 | F229: 0.375 | G229: 1 | H229: =D229*F229 -> 0 | I229: =G229*D229 -> 0 | K229: 3-8 hours to develop text and supporting data
B230: =B25 -> Traffic Volume Development | D230: =IF(($D$25="Required"),1,0) -> 0 | F230: 0.375 | G230: 1 | H230: 0 | I230: 0 | K230: 3-8 hours to document procedure for volume development and add OD matrices to Appendix
B231: =B51 -> 201X Base Year Model | D231: =IF(($D$51="Required"),1,0) -> 0 | F231: 0.5 | G231: 2 | H231: 0 | I231: 0 | K231: 4-16 hours to document base year analysis and develop supporting figures
B232: =B111 -> 204X No-Build Analysis | D232: =IF(($D$111="Required"),1,0) -> 0 | F232: 0.5 | G232: 1.5 | H232: 0 | I232: 0 | K232: 4-12 hours to document future year no-build analysis and develop supporting figures
B233: =B160 -> 204X Build Analysis | D233: =IF(($D$160="Required"),D203,0) -> 0 | F233: 0.5 | G233: 1.5 | H233: 0 | I233: 0 | K233: 4-12 hours per alternative to document future year build analysis and develop supporting figures
B234: =B211 -> 201X Build Analysis | D234: =IF(($D$211="Required"),1,0) -> 0 | F234: 0.375 | G234: 0.75 | H234: =D234*F234 -> 0 | I234: =G234*D234 -> 0 | K234: 3-6 hours to document base year build analysis and develop supporting figures
A236: 8.2 | B236: Interchange Access Report | D236: 0 | F236: 1.5 | G236: 4 | H236: =D236*F236 -> 0 | I236: =G236*D236 -> 0 | K236: 12-32 hours to develop Policy Point discussion and coordinate w/ NCDOT/FHWA
A238: 11 | B238: Additional Scope Items
B239: Insert Additional Scope Items TOTAL Mandays Here: | D239: 0 | H239: =D239 -> 0 | I239: =D239 -> 0 | K239: Insert Number of Mandays Here for inclusion in calculation of project management time

Sheet Sheet1 (hidden)
A1: Run Macro with cell A2 selected
A2: 1 | B2: Insert Project Description | C2: Insert County Name | D2: Insert STIP No. | E2: Insert WBS No. | F2: Insert Private Engineering Firm Name | G2: Month 2016-Month 2016 | H2: Insert Initial Development Date. | I2: Insert Finalized Date | J2: insert Contract Type/Mechanism. | K2: insert PEF Name | L2: insert Task Order # | M2: insert # | N2: Insert Project/Study Overview | O2: Insert # | P2: Insert other units/agencies | Q2: insert # | R2: insert # | S2: insert # | T2: insert # | U2: insert # | V2: insert # | W2: insert # | X2: insert # | Y2: insert # | Z2: Insert # | AA2: ## | AB2: ## | AC2: ## | AD2: ## | AE2: ## | AF2: ## | AG2: ## | AH2: ## | AI2: ## | AJ2: ## | AK2: ## | AL2: ## | AM2: ## | AN2: insert # | AO2: insert # | AP2: insert # | AQ2: insert # | AR2: insert # | AS2: ## | AT2: ## | AU2: ## | AV2: ## | AW2: ## | AX2: ## | AY2: ## | AZ2: ## | BA2: ## | BB2: ## | BC2: ## | BD2: ## | BE2: ## | BF2: insert # | BG2: insert # | BH2: insert # | BI2: insert # | BJ2: insert # | BK2: ## | BL2: ## | BM2: ## | BN2: ## | BO2: ## | BP2: ## | BQ2: ## | BR2: ## | BS2: ## | BT2: ## | BU2: ## | BV2: ## | BW2: ## | BX2: insert # | BY2: insert # | BZ2: insert # | CA2: insert # | CB2: insert # | CC2: insert # | CD2: insert # | CE2: insert # | CF2: insert # | CG2: insert # | CH2: ##
A4: 1 | B4: =A2 -> 1
A5: 2 | B5: =B2 -> Insert Project Description
A6: 3 | B6: =C2 -> Insert County Name
A7: 4 | B7: =D2 -> Insert STIP No.
A8: 5 | B8: =E2 -> Insert WBS No.
A9: 6 | B9: =F2 -> Insert Private Engineering Firm Name
A10: 7 | B10: =G2 -> Month 2016-Month 2016
A11: 8 | B11: =H2 -> Insert Initial Development Date.
A12: 9 | B12: =I2 -> Insert Finalized Date
A13: 10 | B13: =J2 -> insert Contract Type/Mechanism.
A14: 11 | B14: =K2 -> insert PEF Name
A15: 12 | B15: =L2 -> insert Task Order #
A16: 13 | B16: =M2 -> insert #
A17: 14 | B17: =N2 -> Insert Project/Study Overview
A18: 15 | B18: =O2 -> Insert #
A19: 16 | B19: =P2 -> Insert other units/agencies
A20: 17 | B20: =Q2 -> insert #
A21: 18 | B21: =R2 -> insert #
A22: 19 | B22: =S2 -> insert #
A23: 20 | B23: =T2 -> insert #
A24: 21 | B24: =U2 -> insert #
A25: 22 | B25: =V2 -> insert #
A26: 23 | B26: =W2 -> insert #
A27: 24 | B27: =X2 -> insert #
A28: 25 | B28: =Y2 -> insert #
A29: 26 | B29: =Z2 -> Insert #
A30: 27 | B30: =AA2 -> ##
A31: 28 | B31: =AB2 -> ##
A32: 29 | B32: =AC2 -> ##
A33: 30 | B33: =AD2 -> ##
A34: 31 | B34: =AE2 -> ##
A35: 32 | B35: =AF2 -> ##
A36: 33 | B36: =AG2 -> ##
A37: 34 | B37: =AH2 -> ##
A38: 35 | B38: =AI2 -> ##
A39: 36 | B39: =AJ2 -> ##
A40: 37 | B40: =AK2 -> ##
A41: 38 | B41: =AL2 -> ##
A42: 39 | B42: =AM2 -> ##
A43: 40 | B43: =AN2 -> insert #
A44: 41 | B44: =AO2 -> insert #
A45: 42 | B45: =AP2 -> insert #
A46: 43 | B46: =AQ2 -> insert #
A47: 44 | B47: =AR2 -> insert #
A48: 45 | B48: =AS2 -> ##
A49: 46 | B49: =AT2 -> ##
A50: 47 | B50: =AU2 -> ##
A51: 48 | B51: =AV2 -> ##
A52: 49 | B52: =AW2 -> ##
A53: 50 | B53: =AX2 -> ##
A54: 51 | B54: =AY2 -> ##
A55: 52 | B55: =AZ2 -> ##
A56: 53 | B56: =BA2 -> ##
A57: 54 | B57: =BB2 -> ##
A58: 55 | B58: =BC2 -> ##
A59: 56 | B59: =BD2 -> ##
A60: 57 | B60: =BE2 -> ##
A61: 58 | B61: =BF2 -> insert #
A62: 59 | B62: =BG2 -> insert #
A63: 60 | B63: =BH2 -> insert #
A64: 61 | B64: =BI2 -> insert #
A65: 62 | B65: =BJ2 -> insert #
A66: 63 | B66: =BK2 -> ##
A67: 64 | B67: =BL2 -> ##
A68: 65 | B68: =BM2 -> ##
A69: 66 | B69: =BN2 -> ##
A70: 67 | B70: =BO2 -> ##
A71: 68 | B71: =BP2 -> ##
A72: 69 | B72: =BQ2 -> ##
A73: 70 | B73: =BR2 -> ##
A74: 71 | B74: =BS2 -> ##
A75: 72 | B75: =BT2 -> ##
A76: 73 | B76: =BU2 -> ##
A77: 74 | B77: =BV2 -> ##
A78: 75 | B78: =BW2 -> ##
A79: 76 | B79: =BX2 -> insert #
A80: 77 | B80: =BY2 -> insert #
A81: 78 | B81: =BZ2 -> insert #
A82: 79 | B82: =CA2 -> insert #
A83: 80 | B83: =CB2 -> insert #
A84: 81 | B84: =CC2 -> insert #
A85: 82 | B85: =CD2 -> insert #
A86: 83 | B86: =CE2 -> insert #
A87: 84 | B87: =CF2 -> insert #
A88: 85 | B88: =CG2 -> insert #
A89: 86 | B89: =CH2 -> ##
A90: 87
A91: 88
A92: 89
A93: 90
A94: 91
A95: 92
A96: 93
A97: 94
A98: 95
A99: 96
A100: 97
A101: 98
A102: 99
A103: 100

Sheet Estimate
A1: CONGESTION MANAGEMENT DESIGN BREAKDOWN WORKSHEET
A3: PROJECT DESCRIPTION: | F3: FIRM: | G3: NCDOT In-House | I3: TIP NUMBER: | L3: =IF(SUM($D$110:$I$110)=0,"Fill-in Rates First","") -> Fill-in Rates First
A4: PREPARED BY: | F4: Task Order No. | I4: WBS NUMBER:
D5: ESTIMATED MAN DAYS
C6: NCDOT Percent by Classification | D6: =IF(SUM($D$110:$I$110)=0,"Fill-in Rates",D196) -> Fill-in Rates | E6: =IF(SUM($D$110:$I$110)=0,"Fill-in Rates",E196) -> Fill-in Rates | F6: Fill-in Rates | G6: Fill-in Rates | H6: Fill-in Rates | I6: Fill-in Rates
D7: Traffic Unit Head (TM-1) | E7: Project Engineer Sup. (TES-3) | F7: Project Engineer Sup. (TES-2) | G7: Project Engineer (TE-3) | H7: Project Engineer (TE-2) | I7: Project Engineer (TE-1)
J8: SUB- | K8: % | L8: PEF
J9: TOTAL | K9: OF | L9: ESTIMATE
A10: TASK | B10: TASK DESCRIPTION | K10: PROJECT | M10: COMMENTS
A11: NO. | P11: Low | Q11: High
A12: 1 | B12: Project Management, Coordination and Administration
A13: 1.1 | B13: Project Management and Administration | D13: =IF($E$6=0,IFERROR((MROUND((Estimate!R13-E13-F13-G13-H13-I13),0.125)),0),MROUND((Estimate!R13*$D$6),0.125)) ->  | E13: =IF($E$6>0,IFERROR((MROUND((Estimate!R13-D13-F13-G13-H13-I13),0.125)),0),0) -> 0 | F13: =MROUND((Estimate!R13*$F$6),0.125) ->  | G13: =MROUND((Estimate!R13*$G$6),0.125) ->  | H13: =MROUND((Estimate!R13*$H$6),0.125) ->  | I13: =MROUND((Estimate!R13*$I$6),0.125) ->  | J13: =SUM(D13:I13) ->  | K13: =J13/$J$109 ->  | P13: =MIN('Scope Inputs'!H8:H9) -> 0 | Q13: =MIN('Scope Inputs'!I8:I9) -> 0 | R13: =P13+(('Scope Inputs'!$D$5/10)*(Q13-P13)) -> 0
A14: 1.2 | B14: Project Coordination | D14: =IF($E$6=0,IFERROR((MROUND((Estimate!R14-E14-F14-G14-H14-I14),0.125)),0),MROUND((Estimate!R14*$D$6),0.125)) ->  | E14: =IF($E$6>0,IFERROR((MROUND((Estimate!R14-D14-F14-G14-H14-I14),0.125)),0),0) -> 0 | F14: =MROUND((Estimate!R14*$F$6),0.125) ->  | G14: =MROUND((Estimate!R14*$G$6),0.125) ->  | H14: =MROUND((Estimate!R14*$H$6),0.125) ->  | I14: =MROUND((Estimate!R14*$I$6),0.125) ->  | J14: =SUM(D14:I14) ->  | K14: =J14/$J$109 ->  | P14: =MIN('Scope Inputs'!H10:H11)+'Scope Inputs'!H12+'Scope Inputs'!H13 -> 0 | Q14: =MIN('Scope Inputs'!I10:I11)+'Scope Inputs'!I12+'Scope Inputs'!I13 -> 0 | R14: =P14+(('Scope Inputs'!$D$5/10)*(Q14-P14)) -> 0
A15: 1.3 | B15: Consultant Coordination | D15: =IF($E$6=0,IFERROR((MROUND((Estimate!R15-E15-F15-G15-H15-I15),0.125)),0),MROUND((Estimate!R15*$D$6),0.125)) ->  | E15: =IF($E$6>0,IFERROR((MROUND((Estimate!R15-D15-F15-G15-H15-I15),0.125)),0),0) -> 0 | F15: =MROUND((Estimate!R15*$F$6),0.125) ->  | G15: =MROUND((Estimate!R15*$G$6),0.125) ->  | H15: =MROUND((Estimate!R15*$H$6),0.125) ->  | I15: =MROUND((Estimate!R15*$I$6),0.125) ->  | J15: =SUM(D15:I15) ->  | K15: =J15/$J$109 ->  | P15: =MIN('Scope Inputs'!H14:H15) -> 0 | Q15: =MIN('Scope Inputs'!I14:I15) -> 0 | R15: =P15+(('Scope Inputs'!$D$5/10)*(Q15-P15)) -> 0
A16: 2 | B16: Data Collection and Field Visit
A17: 2.1 | B17: Data Collection | D17: =IF($E$6=0,IFERROR((MROUND((Estimate!R17-E17-F17-G17-H17-I17),0.125)),0),MROUND((Estimate!R17*$D$6),0.125)) ->  | E17: =IF($E$6>0,IFERROR((MROUND((Estimate!R17-D17-F17-G17-H17-I17),0.125)),0),0) -> 0 | F17: =MROUND((Estimate!R17*$F$6),0.125) ->  | G17: =MROUND((Estimate!R17*$G$6),0.125) ->  | H17: =MROUND((Estimate!R17*$H$6),0.125) ->  | I17: =MROUND((Estimate!R17*$I$6),0.125) ->  | J17: =SUM(D17:I17) ->  | K17: =J17/$J$109 ->  | P17: ='Scope Inputs'!H18 -> 0 | Q17: ='Scope Inputs'!I18 -> 0 | R17: =P17+(('Scope Inputs'!$D$5/10)*(Q17-P17)) -> 0
A18: 2.2 | B18: Field Visit | D18: =IF($E$6=0,IFERROR((MROUND((Estimate!R18-E18-F18-G18-H18-I18),0.125)),0),MROUND((Estimate!R18*$D$6),0.125)) ->  | E18: =IF($E$6>0,IFERROR((MROUND((Estimate!R18-D18-F18-G18-H18-I18),0.125)),0),0) -> 0 | F18: =MROUND((Estimate!R18*$F$6),0.125) ->  | G18: =MROUND((Estimate!R18*$G$6),0.125) ->  | H18: =MROUND((Estimate!R18*$H$6),0.125) ->  | I18: =MROUND((Estimate!R18*$I$6),0.125) ->  | J18: =SUM(D18:I18) ->  | K18: =J18/$J$109 ->  | P18: ='Scope Inputs'!H21+'Scope Inputs'!H22+'Scope Inputs'!H23 -> 0 | Q18: ='Scope Inputs'!I21+'Scope Inputs'!I22+'Scope Inputs'!I23 -> 0 | R18: =P18+(('Scope Inputs'!$D$5/10)*(Q18-P18)) -> 0
A19: 3 | B19: Traffic Volume Development
A20: 3.1 | B20: Convert Forecast to Peak Hour Volumes | D20: =IF($E$6=0,IFERROR((MROUND((Estimate!R20-E20-F20-G20-H20-I20),0.125)),0),MROUND((Estimate!R20*$D$6),0.125)) ->  | E20: =IF($E$6>0,IFERROR((MROUND((Estimate!R20-D20-F20-G20-H20-I20),0.125)),0),0) -> 0 | F20: =MROUND((Estimate!R20*$F$6),0.125) ->  | G20: =MROUND((Estimate!R20*$G$6),0.125) ->  | H20: =MROUND((Estimate!R20*$H$6),0.125) ->  | I20: =MROUND((Estimate!R20*$I$6),0.125) ->  | J20: =SUM(D20:I20) ->  | K20: =J20/$J$109 ->  | P20: ='Scope Inputs'!H27+'Scope Inputs'!H28 -> 0 | Q20: ='Scope Inputs'!I27+'Scope Inputs'!I28 -> 0 | R20: =P20+(('Scope Inputs'!$D$5/10)*(Q20-P20)) -> 0
A21: 3.2 | B21: Balance Peak Hour Volumes | D21: =IF($E$6=0,IFERROR((MROUND((Estimate!R21-E21-F21-G21-H21-I21),0.125)),0),MROUND((Estimate!R21*$D$6),0.125)) ->  | E21: =IF($E$6>0,IFERROR((MROUND((Estimate!R21-D21-F21-G21-H21-I21),0.125)),0),0) -> 0 | F21: =MROUND((Estimate!R21*$F$6),0.125) ->  | G21: =MROUND((Estimate!R21*$G$6),0.125) ->  | H21: =MROUND((Estimate!R21*$H$6),0.125) ->  | I21: =MROUND((Estimate!R21*$I$6),0.125) ->  | P21: ='Scope Inputs'!H29 -> 0 | Q21: ='Scope Inputs'!I29 -> 0 | R21: =P21+(('Scope Inputs'!$D$5/10)*(Q21-P21)) -> 0
A22: 3.3 | B22: OD Matrix Development | D22: =IF($E$6=0,IFERROR((MROUND((Estimate!R22-E22-F22-G22-H22-I22),0.125)),0),MROUND((Estimate!R22*$D$6),0.125)) ->  | E22: =IF($E$6>0,IFERROR((MROUND((Estimate!R22-D22-F22-G22-H22-I22),0.125)),0),0) -> 0 | F22: =MROUND((Estimate!R22*$F$6),0.125) ->  | G22: =MROUND((Estimate!R22*$G$6),0.125) ->  | H22: =MROUND((Estimate!R22*$H$6),0.125) ->  | I22: =MROUND((Estimate!R22*$I$6),0.125) ->  | P22: ='Scope Inputs'!H32+'Scope Inputs'!H33+'Scope Inputs'!H34+'Scope Inputs'!H35+'Scope Inputs'!H36+'Scope Inputs'!H37 -> 0 | Q22: ='Scope Inputs'!I32+'Scope Inputs'!I33+'Scope Inputs'!I34+'Scope Inputs'!I35+'Scope Inputs'!I36+'Scope Inputs'!I37 -> 0 | R22: =P22+(('Scope Inputs'!$D$5/10)*(Q22-P22)) -> 0
A23: 3.4 | B23: Origin Destination Matrix Estimation (ODME) Development | D23: =IF($E$6=0,IFERROR((MROUND((Estimate!R23-E23-F23-G23-H23-I23),0.125)),0),MROUND((Estimate!R23*$D$6),0.125)) ->  | E23: =IF($E$6>0,IFERROR((MROUND((Estimate!R23-D23-F23-G23-H23-I23),0.125)),0),0) -> 0 | F23: =MROUND((Estimate!R23*$F$6),0.125) ->  | G23: =MROUND((Estimate!R23*$G$6),0.125) ->  | H23: =MROUND((Estimate!R23*$H$6),0.125) ->  | I23: =MROUND((Estimate!R23*$I$6),0.125) ->  | P23: ='Scope Inputs'!H40 -> 0 | Q23: ='Scope Inputs'!I40 -> 0 | R23: =P23+(('Scope Inputs'!$D$5/10)*(Q23-P23)) -> 0
A24: 3.5 | B24: Class Based OD Matrix Development | D24: =IF($E$6=0,IFERROR((MROUND((Estimate!R24-E24-F24-G24-H24-I24),0.125)),0),MROUND((Estimate!R24*$D$6),0.125)) ->  | E24: =IF($E$6>0,IFERROR((MROUND((Estimate!R24-D24-F24-G24-H24-I24),0.125)),0),0) -> 0 | F24: =MROUND((Estimate!R24*$F$6),0.125) ->  | G24: =MROUND((Estimate!R24*$G$6),0.125) ->  | H24: =MROUND((Estimate!R24*$H$6),0.125) ->  | I24: =MROUND((Estimate!R24*$I$6),0.125) ->  | P24: ='Scope Inputs'!H43 -> 0 | Q24: ='Scope Inputs'!I43 -> 0 | R24: =P24+(('Scope Inputs'!$D$5/10)*(Q24-P24)) -> 0
A25: 3.6 | B25: Multi-hour Simulation OD Matrix Development | D25: =IF($E$6=0,IFERROR((MROUND((Estimate!R25-E25-F25-G25-H25-I25),0.125)),0),MROUND((Estimate!R25*$D$6),0.125)) ->  | E25: =IF($E$6>0,IFERROR((MROUND((Estimate!R25-D25-F25-G25-H25-I25),0.125)),0),0) -> 0 | F25: =MROUND((Estimate!R25*$F$6),0.125) ->  | G25: =MROUND((Estimate!R25*$G$6),0.125) ->  | H25: =MROUND((Estimate!R25*$H$6),0.125) ->  | I25: =MROUND((Estimate!R25*$I$6),0.125) ->  | P25: ='Scope Inputs'!H46+'Scope Inputs'!H47 -> 0 | Q25: ='Scope Inputs'!I46+'Scope Inputs'!I47 -> 0 | R25: =P25+(('Scope Inputs'!$D$5/10)*(Q25-P25)) -> 0
A26: 3.7 | B26: Add Origin Destination Matrices in TransModeler | D26: =IF($E$6=0,IFERROR((MROUND((Estimate!R26-E26-F26-G26-H26-I26),0.125)),0),MROUND((Estimate!R26*$D$6),0.125)) ->  | E26: =IF($E$6>0,IFERROR((MROUND((Estimate!R26-D26-F26-G26-H26-I26),0.125)),0),0) -> 0 | F26: =MROUND((Estimate!R26*$F$6),0.125) ->  | G26: =MROUND((Estimate!R26*$G$6),0.125) ->  | H26: =MROUND((Estimate!R26*$H$6),0.125) ->  | I26: =MROUND((Estimate!R26*$I$6),0.125) ->  | P26: ='Scope Inputs'!H49 -> 0 | Q26: ='Scope Inputs'!I49 -> 0 | R26: =P26+(('Scope Inputs'!$D$5/10)*(Q26-P26)) -> 0
A27: 4 | B27: 201X Base Year Model
A28: 4.1 | B28: Model Development
A29: 4.1.1 | B29: Initial Model Setup | D29: =IF($E$6=0,IFERROR((MROUND((Estimate!R29-E29-F29-G29-H29-I29),0.125)),0),MROUND((Estimate!R29*$D$6),0.125)) ->  | E29: =IF($E$6>0,IFERROR((MROUND((Estimate!R29-D29-F29-G29-H29-I29),0.125)),0),0) -> 0 | F29: =MROUND((Estimate!R29*$F$6),0.125) ->  | G29: =MROUND((Estimate!R29*$G$6),0.125) ->  | H29: =MROUND((Estimate!R29*$H$6),0.125) ->  | I29: =MROUND((Estimate!R29*$I$6),0.125) ->  | J29: =SUM(D29:I29) ->  | K29: =J29/$J$109 ->  | P29: ='Scope Inputs'!H56+'Scope Inputs'!H57 -> 0 | Q29: ='Scope Inputs'!I56+'Scope Inputs'!I57 -> 0 | R29: =P29+(('Scope Inputs'!$D$5/10)*(Q29-P29)) -> 0
A30: 4.1.2 | B30: Develop Base Year Model in TransModeler | D30: =IF($E$6=0,IFERROR((MROUND((Estimate!R30-E30-F30-G30-H30-I30),0.125)),0),MROUND((Estimate!R30*$D$6),0.125)) ->  | E30: =IF($E$6>0,IFERROR((MROUND((Estimate!R30-D30-F30-G30-H30-I30),0.125)),0),0) -> 0 | F30: =MROUND((Estimate!R30*$F$6),0.125) ->  | G30: =MROUND((Estimate!R30*$G$6),0.125) ->  | H30: =MROUND((Estimate!R30*$H$6),0.125) ->  | I30: =MROUND((Estimate!R30*$I$6),0.125) ->  | P30: =SUM('Scope Inputs'!H60:H74) -> 0 | Q30: =SUM('Scope Inputs'!I60:I74) -> 0 | R30: =P30+(('Scope Inputs'!$D$5/10)*(Q30-P30)) -> 0
A31: 4.1.3 | B31: Adding Volume Data to Model | D31: =IF($E$6=0,IFERROR((MROUND((Estimate!R31-E31-F31-G31-H31-I31),0.125)),0),MROUND((Estimate!R31*$D$6),0.125)) ->  | E31: =IF($E$6>0,IFERROR((MROUND((Estimate!R31-D31-F31-G31-H31-I31),0.125)),0),0) -> 0 | F31: =MROUND((Estimate!R31*$F$6),0.125) ->  | G31: =MROUND((Estimate!R31*$G$6),0.125) ->  | H31: =MROUND((Estimate!R31*$H$6),0.125) ->  | I31: =MROUND((Estimate!R31*$I$6),0.125) ->  | P31: ='Scope Inputs'!H77+'Scope Inputs'!H79 -> 0 | Q31: ='Scope Inputs'!I77+'Scope Inputs'!I79 -> 0 | R31: =P31+(('Scope Inputs'!$D$5/10)*(Q31-P31)) -> 0
A32: 4.1.4 | B32: Optimize Signalized Intersections | D32: =IF($E$6=0,IFERROR((MROUND((Estimate!R32-E32-F32-G32-H32-I32),0.125)),0),MROUND((Estimate!R32*$D$6),0.125)) ->  | E32: =IF($E$6>0,IFERROR((MROUND((Estimate!R32-D32-F32-G32-H32-I32),0.125)),0),0) -> 0 | F32: =MROUND((Estimate!R32*$F$6),0.125) ->  | G32: =MROUND((Estimate!R32*$G$6),0.125) ->  | H32: =MROUND((Estimate!R32*$H$6),0.125) ->  | I32: =MROUND((Estimate!R32*$I$6),0.125) ->  | P32: ='Scope Inputs'!H81+'Scope Inputs'!H82 -> 0 | Q32: ='Scope Inputs'!I81+'Scope Inputs'!I82 -> 0 | R32: =P32+(('Scope Inputs'!$D$5/10)*(Q32-P32)) -> 0
A33: 4.1.5 | B33: Dynamic Traffic Assignment | D33: =IF($E$6=0,IFERROR((MROUND((Estimate!R33-E33-F33-G33-H33-I33),0.125)),0),MROUND((Estimate!R33*$D$6),0.125)) ->  | E33: =IF($E$6>0,IFERROR((MROUND((Estimate!R33-D33-F33-G33-H33-I33),0.125)),0),0) -> 0 | F33: =MROUND((Estimate!R33*$F$6),0.125) ->  | G33: =MROUND((Estimate!R33*$G$6),0.125) ->  | H33: =MROUND((Estimate!R33*$H$6),0.125) ->  | I33: =MROUND((Estimate!R33*$I$6),0.125) ->  | P33: ='Scope Inputs'!H84+'Scope Inputs'!H85 -> 0 | Q33: ='Scope Inputs'!I84+'Scope Inputs'!I85 -> 0 | R33: =P33+(('Scope Inputs'!$D$5/10)*(Q33-P33)) -> 0
A34: 4.1.6 | B34: Code Measures of Effectiveness | D34: =IF($E$6=0,IFERROR((MROUND((Estimate!R34-E34-F34-G34-H34-I34),0.125)),0),MROUND((Estimate!R34*$D$6),0.125)) ->  | E34: =IF($E$6>0,IFERROR((MROUND((Estimate!R34-D34-F34-G34-H34-I34),0.125)),0),0) -> 0 | F34: =MROUND((Estimate!R34*$F$6),0.125) ->  | G34: =MROUND((Estimate!R34*$G$6),0.125) ->  | H34: =MROUND((Estimate!R34*$H$6),0.125) ->  | I34: =MROUND((Estimate!R34*$I$6),0.125) ->  | P34: =SUM('Scope Inputs'!H87:H94) -> 0 | Q34: =SUM('Scope Inputs'!I87:I94) -> 0 | R34: =P34+(('Scope Inputs'!$D$5/10)*(Q34-P34)) -> 0
A35: 4.1.7 | B35: Error Check/Visual Audit/Quality Control | D35: =IF($E$6=0,IFERROR((MROUND((Estimate!R35-E35-F35-G35-H35-I35),0.125)),0),MROUND((Estimate!R35*$D$6),0.125)) ->  | E35: =IF($E$6>0,IFERROR((MROUND((Estimate!R35-D35-F35-G35-H35-I35),0.125)),0),0) -> 0 | F35: =MROUND((Estimate!R35*$F$6),0.125) ->  | G35: =MROUND((Estimate!R35*$G$6),0.125) ->  | H35: =MROUND((Estimate!R35*$H$6),0.125) ->  | I35: =MROUND((Estimate!R35*$I$6),0.125) ->  | P35: ='Scope Inputs'!H96 -> 0 | Q35: ='Scope Inputs'!I96 -> 0 | R35: =P35+(('Scope Inputs'!$D$5/10)*(Q35-P35)) -> 0
A36: 4.1.8 | B36: Default Values/Visual Validation/Calibration | D36: =IF($E$6=0,IFERROR((MROUND((Estimate!R36-E36-F36-G36-H36-I36),0.125)),0),MROUND((Estimate!R36*$D$6),0.125)) ->  | E36: =IF($E$6>0,IFERROR((MROUND((Estimate!R36-D36-F36-G36-H36-I36),0.125)),0),0) -> 0 | F36: =MROUND((Estimate!R36*$F$6),0.125) ->  | G36: =MROUND((Estimate!R36*$G$6),0.125) ->  | H36: =MROUND((Estimate!R36*$H$6),0.125) ->  | I36: =MROUND((Estimate!R36*$I$6),0.125) ->  | P36: ='Scope Inputs'!H100+'Scope Inputs'!H101+'Scope Inputs'!H102 -> 0 | Q36: ='Scope Inputs'!I100+'Scope Inputs'!I101+'Scope Inputs'!I102 -> 0 | R36: =P36+(('Scope Inputs'!$D$5/10)*(Q36-P36)) -> 0
A37: 4.1.9 | B37: Run Model/Extract Outputs - Setup Run Controls/Run Simulation | D37: =IF($E$6=0,IFERROR((MROUND((Estimate!R37-E37-F37-G37-H37-I37),0.125)),0),MROUND((Estimate!R37*$D$6),0.125)) ->  | E37: =IF($E$6>0,IFERROR((MROUND((Estimate!R37-D37-F37-G37-H37-I37),0.125)),0),0) -> 0 | F37: =MROUND((Estimate!R37*$F$6),0.125) ->  | G37: =MROUND((Estimate!R37*$G$6),0.125) ->  | H37: =MROUND((Estimate!R37*$H$6),0.125) ->  | I37: =MROUND((Estimate!R37*$I$6),0.125) ->  | P37: ='Scope Inputs'!H105 -> 0 | Q37: ='Scope Inputs'!I105 -> 0 | R37: =P37+(('Scope Inputs'!$D$5/10)*(Q37-P37)) -> 0
A38: 4.1.10 | B38: Multi-hour Simulation Adjustment | D38: =IF($E$6=0,IFERROR((MROUND((Estimate!R38-E38-F38-G38-H38-I38),0.125)),0),MROUND((Estimate!R38*$D$6),0.125)) ->  | E38: =IF($E$6>0,IFERROR((MROUND((Estimate!R38-D38-F38-G38-H38-I38),0.125)),0),0) -> 0 | F38: =MROUND((Estimate!R38*$F$6),0.125) ->  | G38: =MROUND((Estimate!R38*$G$6),0.125) ->  | H38: =MROUND((Estimate!R38*$H$6),0.125) ->  | I38: =MROUND((Estimate!R38*$I$6),0.125) ->  | P38: ='Scope Inputs'!H108 -> 0 | Q38: ='Scope Inputs'!I108 -> 0 | R38: =P38+(('Scope Inputs'!$D$5/10)*(Q38-P38)) -> 0
A39: 5 | B39: 204X No-Build Analysis
A40: 5.1 | B40: Model Development
A41: 5.1.1 | B41: Develop Future Year No-Build Model | D41: =IF($E$6=0,IFERROR((MROUND((Estimate!R41-E41-F41-G41-H41-I41),0.125)),0),MROUND((Estimate!R41*$D$6),0.125)) ->  | E41: =IF($E$6>0,IFERROR((MROUND((Estimate!R41-D41-F41-G41-H41-I41),0.125)),0),0) -> 0 | F41: =MROUND((Estimate!R41*$F$6),0.125) ->  | G41: =MROUND((Estimate!R41*$G$6),0.125) ->  | H41: =MROUND((Estimate!R41*$H$6),0.125) ->  | I41: =MROUND((Estimate!R41*$I$6),0.125) ->  | J41: =SUM(D41:I41) ->  | K41: =J41/$J$109 ->  | P41: =SUM('Scope Inputs'!H115:H129) -> 0 | Q41: =SUM('Scope Inputs'!I115:I129) -> 0 | R41: =P41+(('Scope Inputs'!$D$5/10)*(Q41-P41)) -> 0
A42: 5.1.2 | B42: Adding Volume Data to Model | D42: =IF($E$6=0,IFERROR((MROUND((Estimate!R42-E42-F42-G42-H42-I42),0.125)),0),MROUND((Estimate!R42*$D$6),0.125)) ->  | E42: =IF($E$6>0,IFERROR((MROUND((Estimate!R42-D42-F42-G42-H42-I42),0.125)),0),0) -> 0 | F42: =MROUND((Estimate!R42*$F$6),0.125) ->  | G42: =MROUND((Estimate!R42*$G$6),0.125) ->  | H42: =MROUND((Estimate!R42*$H$6),0.125) ->  | I42: =MROUND((Estimate!R42*$I$6),0.125) ->  | P42: ='Scope Inputs'!H132+'Scope Inputs'!H134 -> 0 | Q42: ='Scope Inputs'!I132+'Scope Inputs'!I134 -> 0 | R42: =P42+(('Scope Inputs'!$D$5/10)*(Q42-P42)) -> 0
A43: 5.1.3 | B43: Optimize Signalized Intersections | D43: =IF($E$6=0,IFERROR((MROUND((Estimate!R43-E43-F43-G43-H43-I43),0.125)),0),MROUND((Estimate!R43*$D$6),0.125)) ->  | E43: =IF($E$6>0,IFERROR((MROUND((Estimate!R43-D43-F43-G43-H43-I43),0.125)),0),0) -> 0 | F43: =MROUND((Estimate!R43*$F$6),0.125) ->  | G43: =MROUND((Estimate!R43*$G$6),0.125) ->  | H43: =MROUND((Estimate!R43*$H$6),0.125) ->  | I43: =MROUND((Estimate!R43*$I$6),0.125) ->  | P43: ='Scope Inputs'!H136+'Scope Inputs'!H137 -> 0 | Q43: ='Scope Inputs'!I136+'Scope Inputs'!I137 -> 0 | R43: =P43+(('Scope Inputs'!$D$5/10)*(Q43-P43)) -> 0
A44: 5.1.4 | B44: Dynamic Traffic Assignment | D44: =IF($E$6=0,IFERROR((MROUND((Estimate!R44-E44-F44-G44-H44-I44),0.125)),0),MROUND((Estimate!R44*$D$6),0.125)) ->  | E44: =IF($E$6>0,IFERROR((MROUND((Estimate!R44-D44-F44-G44-H44-I44),0.125)),0),0) -> 0 | F44: =MROUND((Estimate!R44*$F$6),0.125) ->  | G44: =MROUND((Estimate!R44*$G$6),0.125) ->  | H44: =MROUND((Estimate!R44*$H$6),0.125) ->  | I44: =MROUND((Estimate!R44*$I$6),0.125) ->  | P44: ='Scope Inputs'!H139+'Scope Inputs'!H140 -> 0 | Q44: ='Scope Inputs'!I139+'Scope Inputs'!I140 -> 0 | R44: =P44+(('Scope Inputs'!$D$5/10)*(Q44-P44)) -> 0
A45: 5.1.5 | B45: Code Measures of Effectiveness | D45: =IF($E$6=0,IFERROR((MROUND((Estimate!R45-E45-F45-G45-H45-I45),0.125)),0),MROUND((Estimate!R45*$D$6),0.125)) ->  | E45: =IF($E$6>0,IFERROR((MROUND((Estimate!R45-D45-F45-G45-H45-I45),0.125)),0),0) -> 0 | F45: =MROUND((Estimate!R45*$F$6),0.125) ->  | G45: =MROUND((Estimate!R45*$G$6),0.125) ->  | H45: =MROUND((Estimate!R45*$H$6),0.125) ->  | I45: =MROUND((Estimate!R45*$I$6),0.125) ->  | P45: =SUM('Scope Inputs'!H142:H149) -> 0 | Q45: =SUM('Scope Inputs'!I142:I149) -> 0 | R45: =P45+(('Scope Inputs'!$D$5/10)*(Q45-P45)) -> 0
A46: 5.1.6 | B46: Error Check/Visual Audit/Quality Control | D46: =IF($E$6=0,IFERROR((MROUND((Estimate!R46-E46-F46-G46-H46-I46),0.125)),0),MROUND((Estimate!R46*$D$6),0.125)) ->  | E46: =IF($E$6>0,IFERROR((MROUND((Estimate!R46-D46-F46-G46-H46-I46),0.125)),0),0) -> 0 | F46: =MROUND((Estimate!R46*$F$6),0.125) ->  | G46: =MROUND((Estimate!R46*$G$6),0.125) ->  | H46: =MROUND((Estimate!R46*$H$6),0.125) ->  | I46: =MROUND((Estimate!R46*$I$6),0.125) ->  | P46: ='Scope Inputs'!H152 -> 0 | Q46: ='Scope Inputs'!I152 -> 0 | R46: =P46+(('Scope Inputs'!$D$5/10)*(Q46-P46)) -> 0
A47: 5.1.7 | B47: Run Model/Extract Outputs - Setup Run Controls/Run Simulation | D47: =IF($E$6=0,IFERROR((MROUND((Estimate!R47-E47-F47-G47-H47-I47),0.125)),0),MROUND((Estimate!R47*$D$6),0.125)) ->  | E47: =IF($E$6>0,IFERROR((MROUND((Estimate!R47-D47-F47-G47-H47-I47),0.125)),0),0) -> 0 | F47: =MROUND((Estimate!R47*$F$6),0.125) ->  | G47: =MROUND((Estimate!R47*$G$6),0.125) ->  | H47: =MROUND((Estimate!R47*$H$6),0.125) ->  | I47: =MROUND((Estimate!R47*$I$6),0.125) ->  | P47: ='Scope Inputs'!H154 -> 0 | Q47: ='Scope Inputs'!I154 -> 0 | R47: =P47+(('Scope Inputs'!$D$5/10)*(Q47-P47)) -> 0
A48: 5.1.8 | B48: Multi-hour Simulation Adjustment | D48: =IF($E$6=0,IFERROR((MROUND((Estimate!R48-E48-F48-G48-H48-I48),0.125)),0),MROUND((Estimate!R48*$D$6),0.125)) ->  | E48: =IF($E$6>0,IFERROR((MROUND((Estimate!R48-D48-F48-G48-H48-I48),0.125)),0),0) -> 0 | F48: =MROUND((Estimate!R48*$F$6),0.125) ->  | G48: =MROUND((Estimate!R48*$G$6),0.125) ->  | H48: =MROUND((Estimate!R48*$H$6),0.125) ->  | I48: =MROUND((Estimate!R48*$I$6),0.125) ->  | P48: ='Scope Inputs'!H157 -> 0 | Q48: ='Scope Inputs'!I157 -> 0 | R48: =P48+(('Scope Inputs'!$D$5/10)*(Q48-P48)) -> 0
A49: 6 | B49: 204X Build Analysis
A50: 6.1 | B50: Model Development
A51: 6.1.1 | B51: Develop Future Year Build Model | D51: =IF($E$6=0,IFERROR((MROUND((Estimate!R51-E51-F51-G51-H51-I51),0.125)),0),MROUND((Estimate!R51*$D$6),0.125)) ->  | E51: =IF($E$6>0,IFERROR((MROUND((Estimate!R51-D51-F51-G51-H51-I51),0.125)),0),0) -> 0 | F51: =MROUND((Estimate!R51*$F$6),0.125) ->  | G51: =MROUND((Estimate!R51*$G$6),0.125) ->  | H51: =MROUND((Estimate!R51*$H$6),0.125) ->  | I51: =MROUND((Estimate!R51*$I$6),0.125) ->  | J51: =SUM(D51:I51) ->  | K51: =J51/$J$109 ->  | P51: =SUM('Scope Inputs'!H164:H178) -> 0 | Q51: =SUM('Scope Inputs'!I164:I178) -> 0 | R51: =P51+(('Scope Inputs'!$D$5/10)*(Q51-P51)) -> 0
A52: 6.1.2 | B52: Adding Volume Data to Model | D52: =IF($E$6=0,IFERROR((MROUND((Estimate!R52-E52-F52-G52-H52-I52),0.125)),0),MROUND((Estimate!R52*$D$6),0.125)) ->  | E52: =IF($E$6>0,IFERROR((MROUND((Estimate!R52-D52-F52-G52-H52-I52),0.125)),0),0) -> 0 | F52: =MROUND((Estimate!R52*$F$6),0.125) ->  | G52: =MROUND((Estimate!R52*$G$6),0.125) ->  | H52: =MROUND((Estimate!R52*$H$6),0.125) ->  | I52: =MROUND((Estimate!R52*$I$6),0.125) ->  | P52: ='Scope Inputs'!H181+'Scope Inputs'!H183 -> 0 | Q52: ='Scope Inputs'!I181+'Scope Inputs'!I183 -> 0 | R52: =P52+(('Scope Inputs'!$D$5/10)*(Q52-P52)) -> 0
A53: 6.1.3 | B53: Optimize Signalized Intersections | D53: =IF($E$6=0,IFERROR((MROUND((Estimate!R53-E53-F53-G53-H53-I53),0.125)),0),MROUND((Estimate!R53*$D$6),0.125)) ->  | E53: =IF($E$6>0,IFERROR((MROUND((Estimate!R53-D53-F53-G53-H53-I53),0.125)),0),0) -> 0 | F53: =MROUND((Estimate!R53*$F$6),0.125) ->  | G53: =MROUND((Estimate!R53*$G$6),0.125) ->  | H53: =MROUND((Estimate!R53*$H$6),0.125) ->  | I53: =MROUND((Estimate!R53*$I$6),0.125) ->  | P53: ='Scope Inputs'!H185+'Scope Inputs'!H186 -> 0 | Q53: ='Scope Inputs'!I185+'Scope Inputs'!I186 -> 0 | R53: =P53+(('Scope Inputs'!$D$5/10)*(Q53-P53)) -> 0
A54: 6.1.4 | B54: Dynamic Traffic Assignment | D54: =IF($E$6=0,IFERROR((MROUND((Estimate!R54-E54-F54-G54-H54-I54),0.125)),0),MROUND((Estimate!R54*$D$6),0.125)) ->  | E54: =IF($E$6>0,IFERROR((MROUND((Estimate!R54-D54-F54-G54-H54-I54),0.125)),0),0) -> 0 | F54: =MROUND((Estimate!R54*$F$6),0.125) ->  | G54: =MROUND((Estimate!R54*$G$6),0.125) ->  | H54: =MROUND((Estimate!R54*$H$6),0.125) ->  | I54: =MROUND((Estimate!R54*$I$6),0.125) ->  | P54: ='Scope Inputs'!H188+'Scope Inputs'!H189 -> 0 | Q54: ='Scope Inputs'!I188+'Scope Inputs'!I189 -> 0 | R54: =P54+(('Scope Inputs'!$D$5/10)*(Q54-P54)) -> 0
A55: 6.1.5 | B55: Code Measures of Effectiveness | D55: =IF($E$6=0,IFERROR((MROUND((Estimate!R55-E55-F55-G55-H55-I55),0.125)),0),MROUND((Estimate!R55*$D$6),0.125)) ->  | E55: =IF($E$6>0,IFERROR((MROUND((Estimate!R55-D55-F55-G55-H55-I55),0.125)),0),0) -> 0 | F55: =MROUND((Estimate!R55*$F$6),0.125) ->  | G55: =MROUND((Estimate!R55*$G$6),0.125) ->  | H55: =MROUND((Estimate!R55*$H$6),0.125) ->  | I55: =MROUND((Estimate!R55*$I$6),0.125) ->  | P55: =SUM('Scope Inputs'!H191:H198) -> 0 | Q55: =SUM('Scope Inputs'!I191:I198) -> 0 | R55: =P55+(('Scope Inputs'!$D$5/10)*(Q55-P55)) -> 0
A56: 6.1.6 | B56: Error Check/Visual Audit/Quality Control | D56: =IF($E$6=0,IFERROR((MROUND((Estimate!R56-E56-F56-G56-H56-I56),0.125)),0),MROUND((Estimate!R56*$D$6),0.125)) ->  | E56: =IF($E$6>0,IFERROR((MROUND((Estimate!R56-D56-F56-G56-H56-I56),0.125)),0),0) -> 0 | F56: =MROUND((Estimate!R56*$F$6),0.125) ->  | G56: =MROUND((Estimate!R56*$G$6),0.125) ->  | H56: =MROUND((Estimate!R56*$H$6),0.125) ->  | I56: =MROUND((Estimate!R56*$I$6),0.125) ->  | P56: ='Scope Inputs'!H201 -> 0 | Q56: ='Scope Inputs'!I201 -> 0 | R56: =P56+(('Scope Inputs'!$D$5/10)*(Q56-P56)) -> 0
A57: 6.1.7 | B57: Run Model/Extract Outputs - Setup Run Controls/Run Simulation | D57: =IF($E$6=0,IFERROR((MROUND((Estimate!R57-E57-F57-G57-H57-I57),0.125)),0),MROUND((Estimate!R57*$D$6),0.125)) ->  | E57: =IF($E$6>0,IFERROR((MROUND((Estimate!R57-D57-F57-G57-H57-I57),0.125)),0),0) -> 0 | F57: =MROUND((Estimate!R57*$F$6),0.125) ->  | G57: =MROUND((Estimate!R57*$G$6),0.125) ->  | H57: =MROUND((Estimate!R57*$H$6),0.125) ->  | I57: =MROUND((Estimate!R57*$I$6),0.125) ->  | P57: ='Scope Inputs'!H203 -> 0 | Q57: ='Scope Inputs'!I203 -> 0 | R57: =P57+(('Scope Inputs'!$D$5/10)*(Q57-P57)) -> 0
A58: 6.1.8 | B58: Multi-hour Simulation Adjustment | D58: =IF($E$6=0,IFERROR((MROUND((Estimate!R58-E58-F58-G58-H58-I58),0.125)),0),MROUND((Estimate!R58*$D$6),0.125)) ->  | E58: =IF($E$6>0,IFERROR((MROUND((Estimate!R58-D58-F58-G58-H58-I58),0.125)),0),0) -> 0 | F58: =MROUND((Estimate!R58*$F$6),0.125) ->  | G58: =MROUND((Estimate!R58*$G$6),0.125) ->  | H58: =MROUND((Estimate!R58*$H$6),0.125) ->  | I58: =MROUND((Estimate!R58*$I$6),0.125) ->  | P58: ='Scope Inputs'!H206 -> 0 | Q58: ='Scope Inputs'!I206 -> 0 | R58: =P58+(('Scope Inputs'!$D$5/10)*(Q58-P58)) -> 0
A59: 6.1.9 | B59: Design Iterations | D59: =IF($E$6=0,IFERROR((MROUND((Estimate!R59-E59-F59-G59-H59-I59),0.125)),0),MROUND((Estimate!R59*$D$6),0.125)) ->  | E59: =IF($E$6>0,IFERROR((MROUND((Estimate!R59-D59-F59-G59-H59-I59),0.125)),0),0) -> 0 | F59: =MROUND((Estimate!R59*$F$6),0.125) ->  | G59: =MROUND((Estimate!R59*$G$6),0.125) ->  | H59: =MROUND((Estimate!R59*$H$6),0.125) ->  | I59: =MROUND((Estimate!R59*$I$6),0.125) ->  | P59: ='Scope Inputs'!H208 -> 0 | Q59: ='Scope Inputs'!I208 -> 0 | R59: =P59+(('Scope Inputs'!$D$5/10)*(Q59-P59)) -> 0
A60: 7 | B60: 201X Build Analysis
A61: 7.1 | B61: Model Development
A62: 7.1.1 | B62: Adding Volume Data to Model | D62: =IF($E$6=0,IFERROR((MROUND((Estimate!R62-E62-F62-G62-H62-I62),0.125)),0),MROUND((Estimate!R62*$D$6),0.125)) ->  | E62: =IF($E$6>0,IFERROR((MROUND((Estimate!R62-D62-F62-G62-H62-I62),0.125)),0),0) -> 0 | F62: =MROUND((Estimate!R62*$F$6),0.125) ->  | G62: =MROUND((Estimate!R62*$G$6),0.125) ->  | H62: =MROUND((Estimate!R62*$H$6),0.125) ->  | I62: =MROUND((Estimate!R62*$I$6),0.125) ->  | J62: =SUM(D62:I62) ->  | K62: =J62/$J$109 ->  | P62: ='Scope Inputs'!H215 -> 0 | Q62: ='Scope Inputs'!I215 -> 0 | R62: =P62+(('Scope Inputs'!$D$5/10)*(Q62-P62)) -> 0
A63: 7.1.2 | B63: Optimize Signalized Intersections | D63: =IF($E$6=0,IFERROR((MROUND((Estimate!R63-E63-F63-G63-H63-I63),0.125)),0),MROUND((Estimate!R63*$D$6),0.125)) ->  | E63: =IF($E$6>0,IFERROR((MROUND((Estimate!R63-D63-F63-G63-H63-I63),0.125)),0),0) -> 0 | F63: =MROUND((Estimate!R63*$F$6),0.125) ->  | G63: =MROUND((Estimate!R63*$G$6),0.125) ->  | H63: =MROUND((Estimate!R63*$H$6),0.125) ->  | I63: =MROUND((Estimate!R63*$I$6),0.125) ->  | J63: =SUM(D63:I63) ->  | K63: =J63/$J$109 ->  | P63: ='Scope Inputs'!H217+'Scope Inputs'!H218 -> 0 | Q63: ='Scope Inputs'!I217+'Scope Inputs'!I218 -> 0 | R63: =P63+(('Scope Inputs'!$D$5/10)*(Q63-P63)) -> 0
A64: 7.1.3 | B64: Dynamic Traffic Assignment | D64: =IF($E$6=0,IFERROR((MROUND((Estimate!R64-E64-F64-G64-H64-I64),0.125)),0),MROUND((Estimate!R64*$D$6),0.125)) ->  | E64: =IF($E$6>0,IFERROR((MROUND((Estimate!R64-D64-F64-G64-H64-I64),0.125)),0),0) -> 0 | F64: =MROUND((Estimate!R64*$F$6),0.125) ->  | G64: =MROUND((Estimate!R64*$G$6),0.125) ->  | H64: =MROUND((Estimate!R64*$H$6),0.125) ->  | I64: =MROUND((Estimate!R64*$I$6),0.125) ->  | J64: =SUM(D64:I64) ->  | K64: =J64/$J$109 ->  | P64: ='Scope Inputs'!H220+'Scope Inputs'!H221 -> 0 | Q64: ='Scope Inputs'!I220+'Scope Inputs'!I221 -> 0 | R64: =P64+(('Scope Inputs'!$D$5/10)*(Q64-P64)) -> 0
A65: 7.1.4 | B65: Run Model/Extract Outputs - Setup Run Controls/Run Simulation | D65: =IF($E$6=0,IFERROR((MROUND((Estimate!R65-E65-F65-G65-H65-I65),0.125)),0),MROUND((Estimate!R65*$D$6),0.125)) ->  | E65: =IF($E$6>0,IFERROR((MROUND((Estimate!R65-D65-F65-G65-H65-I65),0.125)),0),0) -> 0 | F65: =MROUND((Estimate!R65*$F$6),0.125) ->  | G65: =MROUND((Estimate!R65*$G$6),0.125) ->  | H65: =MROUND((Estimate!R65*$H$6),0.125) ->  | I65: =MROUND((Estimate!R65*$I$6),0.125) ->  | J65: =SUM(D65:I65) ->  | K65: =J65/$J$109 ->  | P65: ='Scope Inputs'!H223 -> 0 | Q65: ='Scope Inputs'!I223 -> 0 | R65: =P65+(('Scope Inputs'!$D$5/10)*(Q65-P65)) -> 0
A66: 8 | B66: Documentation
A67: 8.1 | B67: Traffic Operations Analysis Technical Memorandum | D67: =IF($E$6=0,IFERROR((MROUND((Estimate!R67-E67-F67-G67-H67-I67),0.125)),0),MROUND((Estimate!R67*$D$6),0.125)) ->  | E67: =IF($E$6>0,IFERROR((MROUND((Estimate!R67-D67-F67-G67-H67-I67),0.125)),0),0) -> 0 | F67: =MROUND((Estimate!R67*$F$6),0.125) ->  | G67: =MROUND((Estimate!R67*$G$6),0.125) ->  | H67: =MROUND((Estimate!R67*$H$6),0.125) ->  | I67: =MROUND((Estimate!R67*$I$6),0.125) ->  | J67: =SUM(D67:I67) ->  | K67: =J67/$J$109 ->  | P67: =SUM('Scope Inputs'!H229:H234) -> 0 | Q67: =SUM('Scope Inputs'!I229:I234) -> 0 | R67: =P67+(('Scope Inputs'!$D$5/10)*(Q67-P67)) -> 0
A68: 8.2 | B68: Interchange Access Report | D68: =IF($E$6=0,IFERROR((MROUND((Estimate!R68-E68-F68-G68-H68-I68),0.125)),0),MROUND((Estimate!R68*$D$6),0.125)) ->  | E68: =IF($E$6>0,IFERROR((MROUND((Estimate!R68-D68-F68-G68-H68-I68),0.125)),0),0) -> 0 | F68: =MROUND((Estimate!R68*$F$6),0.125) ->  | G68: =MROUND((Estimate!R68*$G$6),0.125) ->  | H68: =MROUND((Estimate!R68*$H$6),0.125) ->  | I68: =MROUND((Estimate!R68*$I$6),0.125) ->  | P68: ='Scope Inputs'!H236 -> 0 | Q68: ='Scope Inputs'!I236 -> 0 | R68: =P68+(('Scope Inputs'!$D$5/10)*(Q68-P68)) -> 0
J69: 0
J70: 0
J71: 0
J72: 0
J73: 0
J74: 0
J75: 0
J76: 0
J77: 0
J78: 0
J79: 0
J80: 0
J81: 0
J82: 0
J83: 0
J84: 0
J85: 0
J86: 0
J87: 0
J88: 0
J89: 0
J90: 0
J91: 0
J92: 0
J93: 0
J94: 0
J95: 0
J96: 0
J97: 0
J98: 0
J99: 0
J100: 0
J101: 0
J102: 0
J103: 0
J104: 0
J105: 0
J106: 0
J107: 0
J108: 0
B109: TOTAL WORKDAYS/CATEGORY: | D109: =SUM(D12:D108) ->  | E109: 0 | L109: 0
A110: =IF(SUM($D$110:$I$110)=0,"Fill-in Rates First","") -> Fill-in Rates First | B110: PEF HOURLY SALARY RATE: | D110: 0 | E110: 0 | F110: 0 | G110: 0 | H110: 0 | I110: 0
D111: =IF(D110>0,1,0) -> 0 | E111: =IF(E110>0,1,0) -> 0 | F111: 0 | G111: 0 | H111: 0 | I111: 0 | J111: =1&E111&F111&G111&H111&I111 -> 100000
B112: RATES PER DAY: | D112: =D110*8 -> 0 | E112: 0 | F112: 0 | G112: 0 | H112: 0 | I112: 0
B113: PAYROLL BURDEN: | D113: =D109*D112 ->  | E113: 0
B114: TOTAL WORKDAYS: | D114: =SUM(D109:I109) -> 
B115: TOTAL PAYROLL BURDEN: | D115: =SUM(D113:I113) -> 
B116: AVERAGE COST PER HOUR: | D116: =SUM(D115/(D114*8)) -> 
B117: GENERAL OVERHEAD: | C117: 1 | D117: =SUM(D115*C117) -> 
B118: SUBTOTAL: | D118: =SUM(D115+D117) -> 
B119: COMPARATIVE FEE: | C119: 0.09 | D119: =SUM(D118*C119) -> 
B120: FACILITIES COST OF CAPITAL: | C120: 0 | D120: =SUM(D115*C120) -> 
B121: TOTAL: | D121: =SUM(D118:D120) -> 
B122: DIRECT EXPENSES: | D122: 0
B123: SUBCONSULTANT FEES (IF NO SEPARATE ESTIMATE): | D123: 0
B124: OTHER GRAND TOTAL: | D124: =D121+D122+D123 -> 
C127: Total Mandays* | F127: =D114 -> 
C144: 4 | D144: Traffic Unit Head (TM-1) | E144: Project Engineer Sup. (TES-3) | F144: Project Engineer Sup. (TES-2) | G144: Project Engineer (TE-3) | H144: Project Engineer (TE-2) | I144: Project Engineer (TE-1)
C147: Complexity
C148: Index
C149: 2 | D149: 0.12 | E149: 0.17 | F149: 0.1 | G149: 0.1 | H149: 0.42 | I149: 0.09
C150: 3 | D150: 0.13 | E150: 0.18 | F150: 0.1 | G150: 0.1 | H150: 0.41 | I150: 0.08
C151: 4 | D151: 0.14 | E151: 0.19 | F151: 0.1 | G151: 0.1 | H151: 0.39 | I151: 0.08
C152: 5 | D152: 0.15 | E152: 0.2 | F152: 0.125 | G152: 0.125 | H152: 0.33 | I152: 0.07
C153: 6 | D153: 0.16 | E153: 0.21 | F153: 0.125 | G153: 0.125 | H153: 0.31 | I153: 0.07
C154: 7 | D154: 0.17 | E154: 0.22 | F154: 0.125 | G154: 0.125 | H154: 0.3 | I154: 0.06
C155: 8 | D155: 0.18 | E155: 0.23 | F155: 0.15 | G155: 0.15 | H155: 0.23 | I155: 0.06
C156: 9 | D156: 0.19 | E156: 0.24 | F156: 0.15 | G156: 0.15 | H156: 0.22 | I156: 0.05
C157: 10 | D157: 0.2 | E157: 0.25 | F157: 0.15 | G157: 0.15 | H157: 0.2 | I157: 0.05
C159: ='Scope Inputs'!D5 -> 2 | D159: =VLOOKUP($C$159,$C$149:I157,2) -> 0.12 | E159: =VLOOKUP($C$159,$C$149:J157,3) -> 0.17 | F159: =VLOOKUP($C$159,$C$149:K157,4) -> 0.1 | G159: =VLOOKUP($C$159,$C$149:L157,5) -> 0.1 | H159: =VLOOKUP($C$159,$C$149:M157,6) -> 0.42 | I159: =VLOOKUP($C$159,$C$149:N157,7) -> 0.09
D161: =D159 -> 0.12 | E161: =E159 -> 0.17 | F161: 0.1 | G161: 0.1 | H161: 0.42 | I161: 0.09
C162: 100000 | D162: =$D$161+$E$161+$F$161+$G$161+$H$161+$I$161 -> 1 | E162: 0 | F162: 0 | G162: 0 | H162: 0 | I162: 0
C163: 100001 | D163: =$D$161+$E$161+$F$161+$G$161 -> 0.49 | E163: 0 | F163: 0 | G163: 0 | H163: 0 | I163: =$H$161+$I$161 -> 0.51
C164: 100010 | D164: =$D$161+$E$161+$F$161 -> 0.39 | E164: 0 | F164: 0 | G164: 0 | H164: =$G$161+$H$161+$I$161 -> 0.61 | I164: 0
C165: 100011 | D165: =$D$161+$E$161+$F$161 -> 0.39 | E165: 0 | F165: 0 | G165: 0 | H165: =$G$161+($H$161*0.7) -> 0.394 | I165: =$I$161+($H$161*0.3) -> 0.216
C166: 100100 | D166: =$D$161+$E$161 -> 0.29 | E166: 0 | F166: 0 | G166: =$F$161+$G$161+$H$161+$I$161 -> 0.71 | H166: 0 | I166: 0
C167: 100101 | D167: 0.29 | E167: 0 | F167: 0 | G167: =$F$161+$G$161+($H$161*0.3) -> 0.326 | H167: 0 | I167: =($H$161*0.7)+$I$161 -> 0.384
C168: 100110 | D168: 0.29 | E168: 0 | F168: 0 | G168: =$G$161+$F$161 -> 0.2 | H168: =$H$161+$I$161 -> 0.51 | I168: 0
C169: 100111 | D169: 0.29 | E169: 0 | F169: 0 | G169: =$F$161+$G$161 -> 0.2 | H169: =$H$161 -> 0.42 | I169: =$I$161 -> 0.09
C170: 101000 | D170: 0.29 | E170: 0 | F170: =$F$161+$G$161+$H$161+$I$161 -> 0.71 | G170: 0 | H170: 0 | I170: 0
C171: 101001 | D171: 0.29 | E171: 0 | F171: =$F$161+$G$161+($H$161*0.3) -> 0.326 | G171: 0 | H171: 0 | I171: =($H$161*0.7)+$I$161 -> 0.384
C172: 101010 | D172: 0.29 | E172: 0 | F172: =$F$161+$G$161 -> 0.2 | G172: 0 | H172: =$H$161+$I$161 -> 0.51 | I172: 0
C173: 101011 | D173: 0.29 | E173: 0 | F173: =$F$161+$G$161 -> 0.2 | G173: 0 | H173: =$H$161 -> 0.42 | I173: =$I$161 -> 0.09
C174: 101100 | D174: =$D$161 -> 0.12 | E174: 0 | F174: =$E$161+$F$161+$G$161 -> 0.37 | G174: =$H$161+$I$161 -> 0.51 | H174: 0 | I174: 0
C175: 101101 | D175: =$D$161+$E$161 -> 0.29 | E175: 0 | F175: =$F$161 -> 0.1 | G175: =$G$161+($H$161*0.5) -> 0.31 | H175: 0 | I175: =$I$161+($H$161*0.5) -> 0.3
C176: 101110 | D176: =$D$161+$E$161 -> 0.29 | E176: 0 | F176: =$F$161 -> 0.1 | G176: =$G$161 -> 0.1 | H176: =$H$161+$I$161 -> 0.51 | I176: 0
C177: 101111 | D177: =$D$161+$E$161 -> 0.29 | E177: 0 | F177: =$F$161 -> 0.1 | G177: =$G$161 -> 0.1 | H177: =$H$161 -> 0.42 | I177: =$I$161 -> 0.09
C178: 110000 | D178: =$D$161 -> 0.12 | E178: =$E$161+$F$161+$G$161+$H$161+$I$161 -> 0.88 | F178: 0 | G178: 0 | H178: 0 | I178: 0
C179: 110001 | D179: =$D$161+$E$161 -> 0.29 | E179: =$F$161+$G$161 -> 0.2 | F179: 0 | G179: 0 | H179: 0 | I179: =$H$161+$I$161 -> 0.51
C180: 110010 | D180: =$D$161+$E$161 -> 0.29 | E180: =$F$161+$G$161 -> 0.2 | F180: 0 | G180: 0 | H180: =$H$161+$I$161 -> 0.51 | I180: 0
C181: 110011 | D181: =$D$161 -> 0.12 | E181: =$E$161+$F$161 -> 0.27 | F181: 0 | G181: 0 | H181: =$H$161+$G$161 -> 0.52 | I181: =$I$161 -> 0.09
C182: 110100 | D182: 0.12 | E182: =$E$161+$F$161 -> 0.27 | F182: 0 | G182: =$G$161+$H$161+$I$161 -> 0.61 | H182: 0 | I182: 0
C183: 110101 | D183: 0.12 | E183: =$E$161+$F$161 -> 0.27 | F183: 0 | G183: =$G$161+($H$161*0.5) -> 0.31 | H183: 0 | I183: =$I$161+($H$161*0.5) -> 0.3
C184: 110110 | D184: 0.12 | E184: =$E$161+$F$161 -> 0.27 | F184: 0 | G184: =$G$161 -> 0.1 | H184: =$H$161+$I$161 -> 0.51 | I184: 0
C185: 110111 | D185: 0.12 | E185: =$E$161+$F$161 -> 0.27 | F185: 0 | G185: =$G$161 -> 0.1 | H185: =$H$161 -> 0.42 | I185: =$I$161 -> 0.09
C186: 111000 | D186: 0.12 | E186: =$E$161 -> 0.17 | F186: =$F$161+$G$161+$H$161+$I$161 -> 0.71 | G186: 0 | H186: 0 | I186: 0
C187: 111001 | D187: 0.12 | E187: =$E$161+$F$161 -> 0.27 | F187: =$G$161+($H$161*0.5) -> 0.31 | G187: 0 | H187: 0 | I187: =$I$161+($H$161*0.5) -> 0.3
C188: 111010 | D188: 0.12 | E188: =$E$161 -> 0.17 | F188: =$F$161+$G$161 -> 0.2 | G188: 0 | H188: =$H$161+$I$161 -> 0.51 | I188: 0
C189: 111011 | D189: 0.12 | E189: 0.17 | F189: =$F$161+$G$161 -> 0.2 | G189: 0 | H189: =$H$161 -> 0.42 | I189: =$I$161 -> 0.09
C190: 111100 | D190: 0.12 | E190: 0.17 | F190: =$F$161+$G$161 -> 0.2 | G190: =$H$161+$I$161 -> 0.51 | H190: 0 | I190: 0
C191: 111101 | D191: 0.12 | E191: 0.17 | F191: =$F$161 -> 0.1 | G191: =$G$161+($H$161*0.5) -> 0.31 | H191: 0 | I191: =$I$161+($H$161*0.5) -> 0.3
C192: 111110 | D192: 0.12 | E192: 0.17 | F192: =$F$161 -> 0.1 | G192: =$G$161 -> 0.1 | H192: =$H$161+$I$161 -> 0.51 | I192: 0
C193: 111111 | D193: 0.12 | E193: 0.17 | F193: =$F$161 -> 0.1 | G193: =$G$161 -> 0.1 | H193: =$H$161 -> 0.42 | I193: =$I$161 -> 0.09
C195: =J111*1 -> 100000 | D195: =VLOOKUP($C$195,$C$162:$I$193,2,FALSE) -> 1 | E195: =VLOOKUP($C$195,$C$162:$I$193,3,FALSE) -> 0 | F195: =VLOOKUP($C$195,$C$162:$I$193,4,FALSE) -> 0 | G195: =VLOOKUP($C$195,$C$162:$I$193,5,FALSE) -> 0 | H195: =VLOOKUP($C$195,$C$162:$I$193,6,FALSE) -> 0 | I195: =VLOOKUP($C$195,$C$162:$I$193,7,FALSE) -> 0
D196: =IF($D$110=0,0,D195) -> 0 | E196: =IF($D$110=0,(D195+E195),E195) -> 1 | F196: =F195 -> 0 | G196: =G195 -> 0 | H196: =H195 -> 0 | I196: =I195 -> 0
